Cogmind - Beta 15 @@@ ROGUE MODE // 2025.05.20 @ 06:48:08 Player: Cereal Killer Result: Destroyed by Decapitator with Experimental Terror Saw Performance ------------- Evolutions (8) 4000 Regions Visited (29) 5800 Robots Destroyed (281) 1405 Value Destroyed (15443) 15443 Prototype IDs (74) 1480 Alien Tech Used (6) 1200 Bonus (18858) 18858 TOTAL SCORE: 48186 Bonus ------- High Alert Combat Kills 1188 Follower Combat Kills 3685 Entered Garrisons 200 Network Hubs Disabled 400 Acquired ECA 300 Met Zhirov 300 Met Warlord at Base 500 MAIN.C Attacked Warlord 500 Warlord Defense Kills 2436 Built Enhanced Grunts 300 A7 Reached Mainframe 300 Met R17 at Cetus 500 Hacked Protovariant 500 Met R17 at Research 2000 Met Warlord at Research 2000 Scanned by Researcher 500 Acquired SGEMP 2000 Met Sigix 2000 Friendly Fire -751 Cogmind --------- Core Integrity 0/1450 Matter 119/300 Energy 99/100 System Corruption 31% Temperature Cool (0) Movement Core (50) Location -2/Protoforge Parts ------- > --- POWER (3) -------- (None) > --- PROPULSION (8) --- (None) > --- UTILITY (9) ------ (None) > --- WEAPON (3) ------- (None) > --- INVENTORY (5) ---- SGEMP Prototype Sigix Containment Pod Peak State ------------ > --- POWER ------------ Reinforced Antimatter Reactor Heavy Antimatter Reactor Light Quantum Reactor > --- PROPULSION ------- Centrium Heavy Treads Centrium Heavy Treads Advanced Heavy Siege Treads Centrium Wheel Centrium Wheel > --- UTILITY ---------- Experimental Power Amplifier Advanced Coolant Injector High-capacity Storage Unit Experimental Targeting Computer Experimental Target Analyzer Experimental Core Analyzer Advanced Transmission Jammer Advanced Phase Shifter Advanced Hacking Suite > --- WEAPON ----------- Heavy Quantum Rifle Perforator > --- INVENTORY -------- Q-thruster Q-thruster Improved Q-thruster Cooled Q-thruster Gravity Neutralizer Experimental EM Shield Transdimensional Reconstructor Transdimensional Reconstructor Core Reset Matrix Subatomic Replicator Terrabomb Terrabomb Core Cannon Multirail Advanced Remote Datajack SGEMP Prototype Sigix Containment Pod [Rating: 218] Favorites ----------- Power Quantum Reactor Engine Ion Engine Power Core Nuclear Core Reactor Quantum Reactor Propulsion Centrium Heavy Treads Treads Centrium Heavy Treads Leg Improved Carbon-fiber Leg Wheel Centrium Wheel Hover Unit Gravmag System Flight Unit Cooled Cesium-ion Thruster Utility Improved Hacking Suite Device Experimental Sensor Array Storage Large Storage Unit Processor Experimental Targeting Computer Hackware Improved Hacking Suite Protection Centrium Medium Armor Plating Weapon KE Penetrator Energy Gun Advanced Variable Charge Gun Energy Cannon Improved Matter Neutralizer Ballistic Gun KE Penetrator Ballistic Cannon Perforator Launcher Fusion Bomb Launcher Special Weapon Advanced Remote Datajack Slashing Weapon Phasing Sabre Piercing Weapon Spear Build | -11 -10 -10 -10 -9 -8 -8 -7 -7 -7 -6 -6 -6 -6 -6 -5 -5 -5 -5 -4 -4 -4 -4 -4 -3 -3 -3 -2 -2 -2 ------- Run | Yrd Mat Min Exi Min Mat Gar Fac Was Fac Fac Ext Cet Arc Hub Fac Upp Upp War Pro Fac Upp Upp Zhi Pro Res Qua Res Tes Frg Slots Evolved 16 | . . . . . 4 . 2 . . 2 . . . . 2 . . . . 2 . . . . 2 . 2 . . Power 2 | . . . . . . . . . . . . . . . . . . . . 1 . . . . . . 1 . . Propulsion 6 | . . . . . . . 1 . . 2 . . . . 1 . . . . . . . . . 2 . . . . Utility 7 | . . . . . 4 . 1 . . . . . . . 1 . . . . 1 . . . . . . . . . Weapon 1 | . . . . . . . . . . . . . . . . . . . . . . . . . . . 1 . . Parts Attached 241 | 6 2 1 1 6 8 15 5 6 14 18 11 7 2 9 9 4 3 10 1 26 . 1 4 1 19 6 16 22 8 Power 29 | 1 . . . . . 3 1 1 2 2 1 1 . 1 . 1 1 . . 3 . . 1 . 2 . 3 4 1 Engine 5 | 1 . . . . . 2 1 . . 1 . . . . . . . . . . . . . . . . . . . Core 6 | . . . . . . 1 . . . 1 1 . . . . . 1 . . 1 . . . . . . . 1 . Reactor 18 | . . . . . . . . 1 2 . . 1 . 1 . 1 . . . 2 . . 1 . 2 . 3 3 1 Propulsion 64 | 2 . . . 3 1 4 1 1 2 3 5 2 1 1 2 2 . 2 . 9 . . 1 . 8 . 6 3 5 Treads 23 | . . . . 2 . . . 1 . . . 2 1 1 2 1 . 2 . 2 . . . . 3 . 3 3 . Leg 9 | . . . . . . . . . 1 . 4 . . . . 1 . . . . . . 1 . . . . . 2 Wheel 19 | 2 . . . 1 1 4 1 . 1 1 . . . . . . . . . 2 . . . . 3 . 2 . 1 Hover 1 | . . . . . . . . . . . 1 . . . . . . . . . . . . . . . . . . Flight 12 | . . . . . . . . . . 2 . . . . . . . . . 5 . . . . 2 . 1 . 2 Utility 89 | 1 1 . 1 1 7 3 2 1 7 7 4 2 . 6 4 1 1 5 . 8 . 1 2 1 4 4 5 9 1 Device 39 | . . . . . 2 3 . 1 3 2 1 . . 3 1 . 1 3 . 4 . 1 1 1 3 2 2 4 1 Storage 6 | 1 . . 1 . . . . . . . 1 . . 1 1 . . . . . . . . . . 1 . . . Processor 16 | . 1 . . 1 1 . . . 2 3 . . . 1 1 . . 1 . . . . . . . . 2 3 . Hackware 10 | . . . . . . . . . . 2 2 . . . 1 . . . . 4 . . . . . . . 1 . Protection 18 | . . . . . 4 . 2 . 2 . . 2 . 1 . 1 . 1 . . . . 1 . 1 1 1 1 . Artifact . | . . . . . . . . . . . . . . . . . . . . . . . . . . . . . . Weapon 59 | 2 1 1 . 2 . 5 1 3 3 6 1 2 1 1 3 . 1 3 1 6 . . . . 5 2 2 6 1 Energy Gun 8 | . . . . . . 1 . . . . . 2 . . 1 . . . 1 1 . . . . . . . 1 1 Energy Cannon 13 | . . . . . . . . 2 . 2 . . . 1 . . . 2 . 1 . . . . 3 1 . 1 . Ballistic Gun 16 | 2 1 . . 1 . 2 . . 1 1 . . 1 . 2 . 1 1 . 1 . . . . . . . 2 . Ballistic Cannon 6 | . . . . . . 1 . 1 . 1 . . . . . . . . . 1 . . . . . . 1 1 . Launcher 7 | . . 1 . . . 1 . . 1 . . . . . . . . . . 1 . . . . . 1 1 1 . Special Weapon 1 | . . . . . . . . . . . . . . . . . . . . . . . . . 1 . . . . Impact Weapon . | . . . . . . . . . . . . . . . . . . . . . . . . . . . . . . Slashing Weapon 6 | . . . . 1 . . 1 . 1 1 1 . . . . . . . . . . . . . 1 . . . . Piercing Weapon 2 | . . . . . . . . . . 1 . . . . . . . . . 1 . . . . . . . . . Special Melee Weapon . | . . . . . . . . . . . . . . . . . . . . . . . . . . . . . . Unidentified Prototypes 50 | . . . . . 1 . . 1 2 3 . 3 . 4 . . 3 5 . 4 . . 5 . 2 2 6 8 1 Parts Lost 96 | . . . . 2 1 8 . . 15 1 2 1 . . 3 2 3 2 . 13 . . . . 5 5 3 9 21 Power 15 | . . . . . 1 2 . . 2 . . . . . . 1 . . . 2 . . . . 1 . . 2 4 Propulsion 27 | . . . . 1 . 3 . . 4 . 1 . . . 1 . 1 . . 3 . . . . 2 . 1 1 9 Utility 39 | . . . . . . 3 . . 5 1 1 1 . . 1 1 1 1 . 6 . . . . 2 4 1 6 5 Weapon 15 | . . . . 1 . . . . 4 . . . . . 1 . 1 1 . 2 . . . . . 1 1 . 3 Highest Loss Streak 14 | . . . . 2 1 4 . . 14 1 1 1 . . 1 1 2 2 . 8 . . . . 4 3 2 2 8 To Critical Strikes 2 | . . . . . . . . . . . . . . . 1 . . . . . . . . . . . . . 1 Average Backups 12 | 2 6 8 9 13 13 14 14 13 11 4 5 9 10 10 10 15 14 14 13 13 15 15 15 15 13 15 15 14 12 Power 1 | . 1 1 1 1 2 1 2 2 1 . . . 1 1 1 1 1 1 1 . . . . 1 . 1 . . . Propulsion 2 | . 2 2 2 1 1 2 2 2 1 . 1 4 2 1 . . . . 1 1 5 5 4 4 3 4 3 3 3 Utility 4 | . . 1 1 5 4 5 3 3 4 1 1 3 5 5 6 7 7 7 7 6 5 5 5 5 3 3 3 3 1 Weapon 2 | . 2 4 4 4 5 5 6 4 2 1 2 1 1 2 2 5 4 4 3 4 5 5 4 4 3 . 1 1 1 Tool/Special . | . . . . . . . . . . . . . . . . . . . . . . . . . . . . . . Unused Backups 39 | . . . . 1 . 4 4 5 4 5 . 2 1 1 . . 1 3 . 1 . . 1 . . 2 1 1 2 Power 9 | . . . . . . 1 2 2 1 1 . . . . . . . 1 . . . . . . . . 1 . . Propulsion 5 | . . . . 1 . . . 1 . . . 1 1 1 . . . . . . . . . . . . . . . Utility 11 | . . . . . . 1 1 1 3 3 . . . . . . . . . . . . . . . 1 . 1 . Weapon 11 | . . . . . . 2 1 1 . 1 . 1 . . . . 1 1 . 1 . . 1 . . 1 . . . Tool/Special 3 | . . . . . . . . . . . . . . . . . . 1 . . . . . . . . . . 2 Average Slot Usage (%) 83 | . 97 100 100 99 97 96 99 95 79 66 75 86 85 83 82 90 83 90 94 82 73 69 69 71 73 84 82 80 63 Engine 1 | . 14 14 14 14 8 6 4 2 . . . . . . . . . . . . . . . . . . . . . Reactor 5 | . . . . . . . . 4 5 . . 5 6 6 5 4 5 5 5 8 5 5 5 5 6 9 12 12 9 Treads 10 | . . . . 19 . . . 4 5 . . 11 18 20 16 20 17 21 29 17 . . . . 3 14 12 12 9 Wheel 6 | . 28 28 28 8 18 17 22 13 6 . . . . . . . . . . . . . . . 8 9 7 8 6 Flight 2 | . . . . . . . . . . 5 5 . . . 4 5 5 4 . 3 15 15 14 15 7 . . . . Device 14 | . . . . . 12 6 28 30 22 23 13 2 6 8 7 5 10 13 11 10 21 17 18 19 15 23 23 15 6 Storage 5 | . 14 14 14 14 9 9 7 7 5 . 1 6 6 6 5 5 5 5 5 5 5 5 5 5 4 4 4 4 3 Processor 9 | . 11 14 14 14 15 18 15 15 12 14 6 4 . 2 7 5 5 5 11 9 5 5 5 5 4 4 9 12 11 Hackware 6 | . . . . . . . . . . 4 20 20 20 14 10 11 11 7 5 12 15 15 15 15 10 6 . 2 3 Protection 4 | . . . . . 14 18 1 . 4 . . 11 13 13 11 15 5 9 11 2 . . . . 2 . . 1 2 Energy Cannon 2 | . . . . . . . . . 10 . . . . 2 3 . . 5 3 . . . . . 4 7 2 1 . Ballistic Gun 4 | . 28 19 14 22 11 8 3 4 . 2 . . 3 3 3 11 11 4 5 4 . . . . . . . 2 2 Slashing Weapon 1 | . . . . 4 6 4 8 4 . 1 6 6 2 . . . . . . . . . . . . . . . . Peak Build Rating 218 | 6 7 7 8 14 29 34 47 64 65 60 62 104 104 122 132 118 107 124 125 146 112 115 115 114 158 173 201 218 200 Average Rating 104 | 4 6 7 7 11 25 28 43 53 53 45 51 95 101 111 123 113 100 112 124 128 112 110 110 113 130 160 189 202 160 On Entrance 83 | . 6 7 7 8 14 21 32 44 64 16 56 62 104 102 120 106 107 100 124 123 112 112 115 109 114 158 163 192 200 Naked Turns 42 | . . . . . . . . . 25 . . . . . . . . . . . . . . . . . . . 17 Heaviest Build 147 | 12 13 15 30 30 53 55 80 59 78 20 32 54 55 68 68 72 65 101 79 88 43 43 43 43 112 132 142 147 139 Greatest Support 240 | 26 26 26 26 40 26 28 40 70 70 21 92 169 183 190 190 158 158 182 182 214 43 43 43 43 64 44 172 240 168 Greatest Overweight (x) 8 | . . . 1 1 2 4 1 1 3 1 1 . . . . . . . . 2 . . 1 . 3 4 8 4 6 Average Overweight (x) . | . . . . . 1 1 . . . . . . . . . . . . . . . . . . . 3 3 1 . Largest Inventory Capacity 20 | 8 8 8 15 15 15 15 15 15 15 5 10 10 10 10 15 15 15 15 15 15 15 15 15 15 15 20 20 20 20 Average Capacity 14 | 6 8 8 13 15 15 15 15 15 13 5 6 10 10 10 10 15 15 15 15 15 15 15 15 15 15 18 20 20 18 Most Carried 20 | 4 8 8 11 15 15 15 15 15 15 5 10 10 10 10 15 15 15 15 15 15 15 15 15 15 15 20 20 20 20 Average Carried 13 | 2 6 7 9 13 13 14 14 14 12 4 5 9 10 9 10 14 14 14 14 14 15 15 14 15 14 17 19 19 17 Final Capacity 20 | 8 8 8 15 15 15 15 15 15 5 5 10 10 10 10 15 15 15 15 15 15 15 15 15 15 15 20 20 20 5 Final Carried 20 | 4 8 8 11 15 15 15 15 15 4 5 9 10 10 10 15 15 15 13 15 15 15 15 15 15 15 20 19 18 4 Class Distribution -------------------- 43% | Scavenger-Mutant 17% | Mutant 9% | Hacker-Mutant 7% | Scavenger-Gunner 7% | Scavenger-Skirmisher 6% | Hacker-Gladiator 4% | Scavenger-Tank Dominant Class ---------------- Mutant | -10/Materials Mutant | -10/Mines Mutant | -10/Exiles Mutant | -9/Mines Mutant | -8/Materials Mutant | -8/Garrison Scavenger-Assassin | -7/Factory Scavenger-Skirmisher | -7/Waste Scavenger-Skirmisher | -7/Factory Mutant | -6/Factory Hacker-Gladiator | -6/Extension Hacker-Gladiator | -6/Cetus Scavenger-Mutant | -6/Archives Scavenger-Mutant | -6/Hub_04(d) Scavenger-Mutant | -5/Factory Scavenger-Mutant | -5/Upper Caves Scavenger-Mutant | -5/Upper Caves Scavenger-Mutant | -5/Warlord Scavenger-Mutant | -4/Proximity Caves Scavenger-Mutant | -4/Factory Hacker-Mutant | -4/Upper Caves Hacker-Mutant | -4/Upper Caves Hacker-Mutant | -4/Zhirov Hacker-Mutant | -3/Proximity Caves Hacker-Mutant | -3/Research Scavenger-Mutant | -3/Quarantine Scavenger-Tank | -2/Research Scavenger-Gunner | -2/Testing Scavenger-Gunner | -2/Protoforge Resources | -11 -10 -10 -10 -9 -8 -8 -7 -7 -7 -6 -6 -6 -6 -6 -5 -5 -5 -5 -4 -4 -4 -4 -4 -3 -3 -3 -2 -2 -2 ----------- Run | Yrd Mat Min Exi Min Mat Gar Fac Was Fac Fac Ext Cet Arc Hub Fac Upp Upp War Pro Fac Upp Upp Zhi Pro Res Qua Res Tes Frg Matter Collected 9058 | 216 151 81 20 81 123 551 127 170 249 291 179 95 20 386 438 392 140 244 112 513 105 47 . . 477 119 602 2060 1069 Remotely . | . . . . . . . . . . . . . . . . . . . . . . . . . . . . . . Salvage Created 14635 | . 211 111 . 265 12 1168 214 188 748 389 302 . . 1007 851 490 138 949 257 1580 . . . . 115 771 669 2907 1293 Parts 611 | . 15 8 . 7 1 41 11 2 28 16 10 . . 39 51 18 4 24 9 85 . . . . 5 35 14 128 60 Haulers Intercepted 7 | . . . . . . . 1 . . . . . . 3 1 . . . . . . . . . . . 1 1 . Recyclers Shooed 3 | . . . . . 1 . . . . . . . . . 2 . . . . . . . . . . . . . . Parts Field Recycled . | . . . . . . . . . . . . . . . . . . . . . . . . . . . . . . Retrieved Matter . | . . . . . . . . . . . . . . . . . . . . . . . . . . . . . . Parts Self-Destructed 31 | . . . . . . . . . . . . . . . . 18 4 . 9 . . . . . . . . . . Prevented 9 | . . . . . . . . . . . . . . . . 7 2 . . . . . . . . . . . . Kills | -11 -10 -10 -10 -9 -8 -8 -7 -7 -7 -6 -6 -6 -6 -6 -5 -5 -5 -5 -4 -4 -4 -4 -4 -3 -3 -3 -2 -2 -2 ------- Run | Yrd Mat Min Exi Min Mat Gar Fac Was Fac Fac Ext Cet Arc Hub Fac Upp Upp War Pro Fac Upp Upp Zhi Pro Res Qua Res Tes Frg Combat Hostiles Destroyed 223 | . 9 4 . 1 . 21 5 1 13 2 2 . . 7 14 10 3 20 5 29 . . . . . 15 15 32 15 Melee 9 | . . . . . . 5 . . . 2 2 . . . . . . . . . . . . . . . . . . Guns 95 | . 9 . . 1 . 9 5 1 1 . . . . 3 13 10 3 5 1 21 . . . . . 1 4 8 . Cannons 92 | . . . . . . 3 . . 11 . . . . 2 . . . 15 4 1 . . . . . 9 8 24 15 AOE 17 | . . 4 . . . 4 . . . . . . . . . . . . . 7 . . . . . . 2 . . Classes Destroyed 25 | . 2 2 . 2 . 4 1 1 1 1 2 . . 1 . . . 3 1 1 . . . . . . 1 2 . Worker 14 | . . 1 . 1 1 . . . 1 . . . . 3 2 . . . . 2 . . . . . . . 1 2 Builder 3 | . . . . . . . . . . . . . . . . . . . . 2 . . . . . . . 1 . Tunneler 3 | . . 1 . 1 . . . . . 1 . . . . . . . . . . . . . . . . . . . Hauler 7 | . . . . . . . 1 . . . . . . 3 1 . . . . . . . . . . . 1 1 . Recycler 10 | . . . . 2 . . . . . 2 1 . . . . . . . . 2 . . . . 1 . . 2 . Mechanic 3 | . . . . . . . . . . . 1 . . . . . . . . . . . . . . . . 1 1 Operator 2 | . . . . . . . . . . 1 . . . . . . . . . . . . . . . . . 1 . Drone 2 | . . . . . . . . . . . . . . . . . . . 1 . . . . . . . . . 1 Watcher 7 | . . . . . . . . . . . 1 . . 2 2 . . . . . . . . . . 1 1 . . Swarmer 44 | . 6 3 . . . 3 4 . . . . . . . 6 5 2 . . 14 . . . . . . 1 . . Saboteur 2 | . . . . . . . . . . . . . . . . . . 1 . . . . . . . . . 1 . Grunt 72 | . 3 2 . . . 11 . . 7 . 2 . . . 1 1 . 10 3 2 . . . . . 4 9 13 4 Brawler 10 | . . . . . . . . . 1 . . . . . . 2 . 3 . . . . . . . . . 3 1 Duelist 6 | . . . . . . 1 . . 2 . . . . 2 . . . . . . . . . . . . 1 . . Protector 3 | . . . . . . . . . . . . . . . . . . 3 . . . . . . . . . . . Researcher 2 | . . . . . . . . . . . . . . . . . . . . . . . . . . . . 2 . Sentry 14 | . . . . 1 . 1 1 . 1 . . . . 3 1 1 1 . 1 1 . . . . . . 1 . 1 Demolisher 1 | . . . . . . . . . . . . . . 1 . . . . . . . . . . . . . . . Specialist 3 | . . . . . . 1 . . . . . . . . . . . . . . . . . . . . . 2 . Hunter 19 | . . . . . . 4 . . . . . . . . 4 1 . . . 5 . . . . . 2 . 2 1 Programmer 36 | . . . . . . 1 . . 2 2 . . . . 2 . . 1 . 7 . . . . . 9 1 8 3 Q-Series 1 | . . . . . . . . . . . . . . . . . . . . . . . . . . . . 1 . Compactor 1 | . . . . . . . . 1 . . . . . . . . . . . . . . . . . . . . . Enhanced Grunt 1 | . . . . . . . . . . . . . . 1 . . . . . . . . . . . . . . . Lightning 1 | . . . . . . . . . . . . . . 1 . . . . . . . . . . . . . . . Hotshot 4 | . . . . . . . . . . . . . . . . . . . . . . . . . . . . . 4 Investigator 1 | . . . . . . . . . . . . . . . . . . . . . . . . . . . . 1 . Striker 3 | . . . . . . . . . . . . . . . . . . . . . . . . . . . 1 2 . Executioner 3 | . . . . . . . . . . . . . . . . . . 2 . . . . . . . . 1 . . Wasp 1 | . . . . . . . . 1 . . . . . . . . . . . . . . . . . . . . . Thug 1 | . . . . . . . . . . . . . . . . . . 1 . . . . . . . . . . . Bouncer 1 | . . . . . . . . . . . . . . . . . . 1 . . . . . . . . . . . Best Kill Streak 12 | . 5 4 . 2 1 6 4 1 4 2 2 . . 3 9 5 3 6 3 11 . . . . 1 4 6 12 7 Combat Bots Only 9 | . 5 3 . 1 . 6 4 1 4 1 2 . . 2 3 5 3 6 3 8 . . . . . 4 6 9 7 Max Kills in Single Turn 4 | . 2 3 . 1 1 2 2 2 1 1 1 . . 2 3 2 1 2 1 4 . . . . 1 2 1 3 3 Gunslinging 1 | . 1 . . . . . 1 . . . . . . . . . . . . 1 . . . . . . . 1 . Exploded 3 | . . 2 . . . 2 . . . . . . . . . . . . . 3 . . . . . . 1 . . Melee 1 | . . . . . . 1 . . . 1 1 . . . . . . . . . . . . . . . . . . Uniques/NPCs Destroyed . | . . . . . . . . . . . . . . . . . . . . . . . . . . . . . . Combat | -11 -10 -10 -10 -9 -8 -8 -7 -7 -7 -6 -6 -6 -6 -6 -5 -5 -5 -5 -4 -4 -4 -4 -4 -3 -3 -3 -2 -2 -2 -------- Run | Yrd Mat Min Exi Min Mat Gar Fac Was Fac Fac Ext Cet Arc Hub Fac Upp Upp War Pro Fac Upp Upp Zhi Pro Res Qua Res Tes Frg Hostile Shots Fired 2396 | . 34 10 . 10 24 100 49 . 299 22 16 6 . 99 185 46 21 23 12 450 4 . . 2 84 231 149 294 226 Missed 800 | . 6 6 . 2 8 23 16 . 89 14 7 3 . 33 54 12 7 9 3 174 3 . . 2 36 65 56 98 74 Hits 1596 | . 28 4 . 8 16 77 33 . 210 8 9 3 . 66 131 34 14 14 9 276 1 . . . 48 166 93 196 152 Melee 37 | . . . . . . 1 . . 17 . . . . 1 . 5 . . . . . . . . . . 2 2 9 Projectile 1559 | . 28 4 . 8 16 76 33 . 193 8 9 3 . 65 131 29 14 14 9 276 1 . . . 48 166 91 194 143 AOE 8 | . . . . . . . . . . . . . . 2 . . . 1 . 2 . . . . . . . 1 2 Critical Strikes 89 | . . . . 1 1 2 . . 15 . 1 1 . 4 3 . 1 . . 8 . . . . 5 6 8 15 18 Part Disruptions 4 | . . . . . . . . . . . . . . . . . . . . . . . . . . 1 . 1 2 Damage Taken 29054 | . 255 37 . 119 270 1256 264 18 3117 98 219 121 . 1340 2193 782 289 634 185 4728 16 . . . 1014 2380 1766 3654 4299 Core 3906 | . 65 9 . 33 53 164 32 18 499 35 131 . . 125 187 131 25 31 . 577 . . . . 328 196 114 193 960 Absorbed by Shields 1704 | . . . . . . . . . . . . . . . . . . 24 . 17 . . . . . 631 636 396 . Reduced by Siege Mode 591 | . . . . . . . . . . . . . . 56 . 5 . . . 418 . . . . . . 112 . . Ignored by Resistances 665 | . . . . . . . 100 . 20 . . . . 80 96 . . . . 19 8 . . . 149 . 106 87 . Regen/Repaired (Parts) 946 | . . . . . . . . 128 93 . 26 . . . 491 . . 208 . . . . . . . . . . . Core Remaining (%) 57 | 100 . . . 57 . 60 . . 21 . . . . 65 . . . . 62 . . . . 49 . 48 . . . Volleys Fired 664 | . 22 7 . 3 15 38 9 10 56 13 . . . 43 48 27 7 31 7 68 . . . . 4 58 76 95 27 Largest 3 | . 2 1 . 2 2 2 2 2 2 2 . . . 2 2 2 2 2 2 2 . . . . 1 2 3 3 1 Hottest 300 | . 40 30 . 40 40 119 103 73 188 120 . . . 113 140 66 66 133 119 298 . . . . 51 300 193 300 100 Shots Fired 1128 | . 44 7 . 6 26 70 17 20 100 16 . . . 64 87 54 15 61 15 118 . . . . 4 90 113 175 26 Gun 656 | . 44 . . 6 24 56 17 10 34 10 . . . 46 79 54 15 31 9 108 . . . . . 20 30 60 3 Cannon 439 | . . . . . . 8 . 10 65 6 . . . 18 8 . . 30 6 6 . . . . 4 69 72 114 23 Launcher 30 | . . 7 . . 2 6 . . 1 . . . . . . . . . . 4 . . . . . 1 9 . . Special 3 | . . . . . . . . . . . . . . . . . . . . . . . . . . . 2 1 . Kinetic 659 | . 44 . . 6 24 37 9 20 43 13 . . . 24 74 54 15 31 8 73 . . . . 4 . 35 119 26 Thermal 363 | . . . . . . 27 8 . 56 3 . . . 22 4 . . . 1 45 . . . . . 75 67 55 . Explosive 25 | . . 7 . . 2 6 . . 1 . . . . . . . . . . . . . . . . . 9 . . Electromagnetic 28 | . . . . . . . . . . . . . . 18 9 . . . . . . . . . . 1 . . . Entropic 50 | . . . . . . . . . . . . . . . . . . 30 6 . . . . . . 14 . . . Robot Hit Streak 42 | . 12 2 . 4 7 13 10 8 14 21 . . . 6 8 14 11 19 7 42 . . . . . 8 28 28 5 Robot Miss Streak 13 | . 3 1 . 1 1 2 1 1 2 1 . . . 3 2 1 1 2 3 4 . . . . . 2 3 8 13 Penetration Max 1 | . . . . . . . . 1 . . . . . 1 1 1 1 1 1 1 . . . . . . . 1 1 Secondary Targets 19 | . 1 . . 1 . 1 2 . . . . . . 1 2 4 . . . 4 . . . . . . . 3 . Max Gunslinging Chain 1 | . 1 . . 1 . 1 1 . . . . . . 1 1 1 . . . 1 . . . . . . . 1 . Shots Hit Robots 865 | . 27 4 . 10 22 73 16 16 69 22 13 . . 41 59 46 12 46 9 87 . . . . 5 52 82 132 22 Core Hits 553 | . 14 9 . 1 7 53 10 2 31 7 5 . . 31 29 16 5 29 7 51 . . . . 2 16 38 147 43 Critical Kills 57 | . . . . . . . . 1 1 . . . . 1 1 2 . 3 . 4 . . . . . 4 1 22 17 Critical Parts Destroyed 66 | . . . . . . 1 . 2 . 1 . . . . 3 . . 1 . 5 . . . . . 1 . 30 22 Critical Strikes 191 | . . . . . . 5 2 5 2 2 3 . . 4 5 2 . 17 3 10 . . . . . 8 4 77 42 Burn 4 | . . . . . . 2 1 . . . . . . . . . . . . 1 . . . . . . . . . Meltdown 6 | . . . . . . . . . 1 . . . . . . . . . . . . . . . . 4 1 . . Destroy 143 | . . . . . . 1 . 5 . 1 . . . 1 4 2 . 4 . 9 . . . . . 1 . 73 42 Blast 8 | . . . . . . . . . 1 . . . . . . . . . . . . . . . . . 3 4 . Corrupt 4 | . . . . . . . . . . . . . . 3 1 . . . . . . . . . . . . . . Sever 3 | . . . . . . 2 1 . . . . . . . . . . . . . . . . . . . . . . Impale 4 | . . . . . . . . . . 1 3 . . . . . . . . . . . . . . . . . . Sunder 19 | . . . . . . . . . . . . . . . . . . 13 3 . . . . . . 3 . . . Melee Attacks 113 | . . . . 5 6 40 7 . 3 19 18 . . . . . . . . . . . . . 15 . . . . Impact . | . . . . . . . . . . . . . . . . . . . . . . . . . . . . . . Slashing 84 | . . . . 5 6 40 7 . 3 7 7 . . . . . . . . . . . . . 9 . . . . Piercing 29 | . . . . . . . . . . 12 11 . . . . . . . . . . . . . 6 . . . . Sneak Attacks 20 | . . . . 5 2 . 1 . 1 4 6 . . . . . . . . . . . . . 1 . . . . Combat Hostiles 4 | . . . . . . . . . . . 4 . . . . . . . . . . . . . . . . . . Follow-up Attacks 2 | . . . . . . . . . . . 2 . . . . . . . . . . . . . . . . . . Damage Inflicted 34895 | . 279 373 . 397 355 2912 438 296 2125 770 735 . . 2041 1541 1140 330 3637 511 3451 . . . . 354 3137 4992 4748 333 Guns 12237 | . 279 . . 41 155 704 246 76 397 213 . . . 910 1321 1140 330 878 136 2559 . . . . . 346 783 1710 13 Cannons 14461 | . . . . . . 192 . 220 1587 122 . . . 673 220 . . 2759 375 39 . . . . . 2760 2182 3012 320 Explosions 4425 | . . 373 . . 59 566 . . 65 . . . . 458 . . . . . 846 . . . . . 31 2027 . . Melee 3739 | . . . . 356 141 1450 192 . 76 435 735 . . . . . . . . . . . . . 354 . . . . Ramming 33 | . . . . . . . . . . . . . . . . . . . . 7 . . . . . . . 26 . Kinetic 13240 | . 279 . . 41 155 540 156 296 646 302 . . . 525 1177 1140 330 878 112 1806 . . . . . . 1222 3302 333 Thermal 9298 | . . . . . . 356 90 . 1306 33 . . . 415 140 . . . 24 1529 . . . . . 2242 1743 1420 . Explosive 3199 | . . 373 . . 59 566 . . 65 . . . . . . . . . . 109 . . . . . . 2027 . . Electromagnetic 1356 | . . . . . . . . . . . . . . 1101 224 . . . . . . . . . . 31 . . . Impact 32 | . . . . . . . . . 32 . . . . . . . . . . . . . . . . . . . . Slashing 2669 | . . . . 356 141 1450 192 . 76 . 195 . . . . . . . . . . . . . 259 . . . . Piercing 1070 | . . . . . . . . . . 435 540 . . . . . . . . . . . . . 95 . . . . Entropic 3998 | . . . . . . . . . . . . . . . . . . 2759 375 . . . . . . 864 . . . Highest Corruption 31 | . . . . . . 1 . . . 2 2 . . 5 1 5 5 8 8 7 5 3 2 2 3 14 3 9 31 Average Corruption 4 | . . . . . . 1 . . . 2 1 . . 4 1 5 5 6 8 6 4 2 2 2 2 5 2 5 11 Corruption Purged 9 | . . . . . . . . . . . 3 . . . 1 . . . . 2 2 1 . . . . . . . Corruption Blocked . | . . . . . . . . . . . . . . . . . . . . . . . . . . . . . . Effects 235 | . . . . . . 3 . . . 2 5 . . 6 6 13 19 3 13 23 2 . 2 . 5 45 13 36 39 Message Errors 54 | . . . . . . 1 . . . 1 . . . 2 2 1 4 1 3 1 . . . . 1 13 4 9 11 Matter Fused 50 | . . . . . . 2 . . . 1 2 . . 3 1 2 3 1 7 7 . . 1 . 2 4 2 6 6 Heat Flow Errors 30 | . . . . . . . . . . . . . . . . 2 4 1 1 5 . . . . . 6 1 3 7 Energy Discharges 22 | . . . . . . . . . . . . . . . . 3 3 . . 2 . . . . 2 4 . 5 3 Parts Rejected 3 | . . . . . . . . . . . . . . . . 1 . . . . . . . . . . . . 2 Parts Fused 1 | . . . . . . . . . . . 1 . . . . . . . . . . . . . . . . . . Data Loss (minor) 38 | . . . . . . . . . . . 1 . . 1 2 3 4 . 1 5 1 . . . . 6 5 7 2 Data Loss (major) 12 | . . . . . . . . . . . . . . . . 1 . . . 1 . . 1 . . 3 1 3 2 Misfires 8 | . . . . . . . . . . . . . . . 1 . 1 . 1 . . . . . . 3 . 2 . Alerts 4 | . . . . . . . . . . . 1 . . . . . . . . . 1 . . . . 2 . . . Misdirections 6 | . . . . . . . . . . . . . . . . . . . . . . . . . . 1 . . 5 Weapon Failures 7 | . . . . . . . . . . . . . . . . . . . . 2 . . . . . 3 . 1 1 Overload Shots . | . . . . . . . . . . . . . . . . . . . . . . . . . . . . . . Overflow Damage 1644 | . . . . 186 36 40 . . 12 45 112 . . 41 56 . . 358 29 230 . . . . 65 298 64 72 . Projectiles 880 | . . . . . . . . . 12 . . . . 41 56 . . 358 29 . . . . . . 298 15 71 . Explosions 279 | . . . . . . . . . . . . . . . . . . . . 230 . . . . . . 49 . . Melee 485 | . . . . 186 36 40 . . . 45 112 . . . . . . . . . . . . . 65 . . 1 . Knockbacks 41 | . . . . . . 1 . . 1 . . . . . . . . . . . . . . . . . 5 15 19 Impact . | . . . . . . . . . . . . . . . . . . . . . . . . . . . . . . Kinetic 40 | . . . . . . 1 . . 1 . . . . . . . . . . . . . . . . . 5 15 18 Secondary 1 | . . . . . . . . . . . . . . . . . . . . . . . . . . . . . 1 Self-Inflicted Damage 450 | . . . . . 21 122 . . 42 . . . . 126 . . . . . 139 . . . . . . . . . Shots 11 | . . . . . 1 4 . . 1 . . . . 2 . . . . . 3 . . . . . . . . . Rammed 1 | . . . . . . . . . . . . . . . . . . . . 1 . . . . . . . . . Targets Rammed 2 | . . . . . . . . . . . . . . . . . . . . 1 . . . . . . . 1 . Kicked . | . . . . . . . . . . . . . . . . . . . . . . . . . . . . . . Crushed 1 | . . . . . . . . . . . . . . . . . . . . . . . . . . . . 1 . Highest Temperature 337 | . 12 1 . 9 35 180 . . 313 . . . . 34 88 288 272 200 71 337 . . . . . 155 135 328 186 Average Temperature 74 | . 7 1 . 9 12 44 . . 79 . . . . 17 20 93 85 106 41 112 . . . . . 77 45 53 74 Received Heat Transfer 3746 | . 60 6 . 27 60 378 30 . 1263 6 48 27 . 144 72 135 54 30 51 162 . . . . 54 46 226 345 522 Effects 6 | . . . . . . . . . . . . . . . . . . 3 . 2 . . . . . . . 1 . Shutdowns 1 | . . . . . . . . . . . . . . . . . . . . . . . . . . . . 1 . Interference 3 | . . . . . . . . . . . . . . . . . . 3 . . . . . . . . . . . Short Circuit 2 | . . . . . . . . . . . . . . . . . . . . 2 . . . . . . . . . Siege Activations 5 | . . . . . . . . . . . . . . 1 . 1 . . . 2 . . . . . . 1 . . Total Turns 123 | . . . . . . . . . . . . . . 22 . 17 . . . 60 . . . . . . 24 . . Longest Duration 49 | . . . . . . . . . . . . . . 22 . 17 . . . 49 . . . . . . 24 . . Martial Activations . | . . . . . . . . . . . . . . . . . . . . . . . . . . . . . . Shielding Activations . | . . . . . . . . . . . . . . . . . . . . . . . . . . . . . . Robots Disrupted . | . . . . . . . . . . . . . . . . . . . . . . . . . . . . . . Combat Hostiles . | . . . . . . . . . . . . . . . . . . . . . . . . . . . . . . Robots Corrupted 5 | . . . . . . . . . . . . . . 4 1 . . . . . . . . . . . . . . Combat Hostiles 3 | . . . . . . . . . . . . . . 2 1 . . . . . . . . . . . . . . Parts Fried 5 | . . . . . . . . . . . . . . 4 . . . . . . . . . . . . . 1 . Impact Corruptions 1 | . . . . . . . . . . . . . . . . . . . . . . . . . . . . 1 . Robots Melted 7 | . . . . . . . . . 1 . . . . . . . . . . . . . . . . 5 1 . . Combat Hostiles 7 | . . . . . . . . . 1 . . . . . . . . . . . . . . . . 5 1 . . Parts Melted 23 | . . . . . . 3 4 . 3 . . . . . . . . . . 5 . . . . . 5 1 2 . Heat Transferred 9400 | . . . . . . 950 300 . 1152 50 . . . 475 148 . . . 37 1897 . . . . . 1591 1896 904 . Parts Sabotaged . | . . . . . . . . . . . . . . . . . . . . . . . . . . . . . . Parts Stolen . | . . . . . . . . . . . . . . . . . . . . . . . . . . . . . . Parts Stripped . | . . . . . . . . . . . . . . . . . . . . . . . . . . . . . . Power Chain Reactions 2 | . . . . . . . . . . . . . . 2 . . . . . . . . . . . . . . . Alert | -11 -10 -10 -10 -9 -8 -8 -7 -7 -7 -6 -6 -6 -6 -6 -5 -5 -5 -5 -4 -4 -4 -4 -4 -3 -3 -3 -2 -2 -2 ------- Run | Yrd Mat Min Exi Min Mat Gar Fac Was Fac Fac Ext Cet Arc Hub Fac Upp Upp War Pro Fac Upp Upp Zhi Pro Res Qua Res Tes Frg Maximum Alert Level 4 | . . 1 . . . 3 2 . 3 2 . 1 1 4 3 . . . . 3 . . . . . . 1 2 2 Low Security (%) 54 | 100 100 98 . 100 100 7 . 100 63 56 100 81 34 15 . . . . . . . . . . 100 100 61 62 12 Level 1 15 | . . 1 . . . 28 9 . 11 34 . 18 65 23 3 . . . . 16 . . . . . . 38 4 67 Level 2 21 | . . . . . . 28 90 . 12 8 . . . 10 90 . . . . 48 . . . . . . . 33 20 Level 3 6 | . . . . . . 35 . . 13 . . . . 5 6 . . . . 34 . . . . . . . . . Level 4 1 | . . . . . . . . . . . . . . 44 . . . . . . . . . . . . . . . Level 5 . | . . . . . . . . . . . . . . . . . . . . . . . . . . . . . . High Security . | . . . . . . . . . . . . . . . . . . . . . . . . . . . . . . Max Security . | . . . . . . . . . . . . . . . . . . . . . . . . . . . . . . Peak Influence 1558 | . 110 207 . 25 46 887 495 136 883 423 170 233 248 1558 749 . . . . 967 . . . . 175 170 298 602 447 Initial 900 | . . 25 . . . 29 465 136 . 423 94 65 71 69 749 . . . . 900 . . . . 13 . 90 108 332 Average 272 | . 34 101 . 1 12 545 437 40 236 230 62 150 197 756 529 . . . . 587 . . . . 49 53 157 238 307 Influence Increases 14665 | . 225 322 . 65 146 978 130 32 1520 279 959 338 207 2053 524 220 60 400 95 2665 . . . 30 280 667 759 1111 600 Destroy 0b10 Robot/C 6080 | . 180 200 . 40 60 460 100 . 420 40 460 160 80 740 280 200 60 340 80 580 . . . . 20 300 300 700 280 Destroy 0b10 Robot/NC 350 | . . 10 . 20 15 20 5 . 25 20 20 10 . 55 25 . . 15 5 30 . . . . 5 5 10 35 20 Destroy Leader 916 | . 40 40 . . 32 40 22 . 84 20 32 . . 152 66 20 . . 10 110 . . . . . 42 74 92 40 Allied During Kill 1391 | . . 22 . 4 7 19 . . 149 . 296 140 80 674 . . . . . . . . . . . . . . . Successful Hack 522 | . 5 5 . . 5 28 . . 28 41 22 12 . 28 42 . . . . 102 . . . . 14 96 . 26 68 Disable Machine 780 | . . . . . 15 15 . . 60 15 30 . 45 150 45 . . . . 150 . . . . . 165 15 60 15 Anti-Garrison Action 950 | . . . . . . 250 . . 350 . . . . . . . . . . 200 . . . . . . 150 . . Destroy Structure 1186 | . . 45 . 1 12 71 3 32 29 8 39 16 2 239 6 . . . . 188 . . . . 16 44 210 153 72 Advance Influence 900 | . . . . . . . . . . . . . . . . . . . . 900 . . . . . . . . . Partial Spotted 105 | . . . . . . . . . 15 15 15 . . . . . . . . 15 . . . . 45 . . . . Lose Combat Pursuer 1485 | . . . . . . 75 . . 360 120 45 . . 15 60 . . 45 . 390 . . . 30 180 15 . 45 105 Influence Decreases 14335 | . 160 278 109 65 101 136 628 421 655 950 1035 277 188 721 1364 570 400 94 401 1852 331 123 359 10 300 506 726 714 861 Entered New Map 4256 | . . 40 109 . . 16 422 253 . 442 100 53 108 129 781 256 65 . 306 . 301 93 359 . 7 . 71 86 259 Time Decay 6597 | . 70 218 . 55 71 . 206 88 365 498 400 214 60 350 553 294 305 74 95 522 30 30 . 10 203 431 525 538 392 Search Patrol Dispatched 300 | . . . . . . . . . . . . . . . . . . . . 300 . . . . . . . . . Lost Part 950 | . . . . 10 10 80 . . 150 10 20 10 . . 30 20 30 20 . 130 . . . . 50 50 30 90 210 Lost Ally 914 | . . 20 . . 20 40 . 80 140 . 311 . 20 143 . . . . . . . . . . 40 . 100 . . Purge Threat 1318 | . 90 . . . . . . . . . 204 . . 99 . . . . . 900 . . . . . 25 . . . Squads Dispatched 70 | . 2 . . . 1 . 2 . 10 10 1 . . 9 5 . . . . 6 . . . . 4 5 2 10 3 Investigation 10 | . 1 . . . . . . . 2 3 1 . . . . . . . . 2 . . . . 1 . . . . Extermination 24 | . . . . . . . 1 . 4 4 . . . . 2 . . . . 2 . . . . 1 3 . 4 3 Reinforcement 22 | . 1 . . . . . 1 . . 3 . . . 5 1 . . . . 1 . . . . 2 2 2 4 . Assault 10 | . . . . . . . . . 3 . . . . 4 . . . . . 1 . . . . . . . 2 . Garrison 4 | . . . . . 1 . . . 1 . . . . . 2 . . . . . . . . . . . . . . Intercept . | . . . . . . . . . . . . . . . . . . . . . . . . . . . . . . Searches Triggered 2 | . . . . . . . . . . . . . . . . . . . . 2 . . . . . . . . . Construction Impeded 2 | . . . . . . . . . . . . . . 1 . . . . . 1 . . . . . . . . . Haulers Reinforced 6 | . . . . . . . . . . 1 . . . 1 1 . . . . . . . . . 1 . 2 . . Active Scanning Responses . | . . . . . . . . . . . . . . . . . . . . . . . . . . . . . . Cargo Convoy Interrupts 1 | . . . . . . . . . . 1 . . . . . . . . . . . . . . . . . . . Stealth | -11 -10 -10 -10 -9 -8 -8 -7 -7 -7 -6 -6 -6 -6 -6 -5 -5 -5 -5 -4 -4 -4 -4 -4 -3 -3 -3 -2 -2 -2 --------- Run | Yrd Mat Min Exi Min Mat Gar Fac Was Fac Fac Ext Cet Arc Hub Fac Upp Upp War Pro Fac Upp Upp Zhi Pro Res Qua Res Tes Frg Distress Signals 34 | . 2 . . . 1 . . . 4 1 3 2 . 3 1 . . 1 . 4 . . . . 4 . 5 1 2 Communications Jammed 91 | . . . . . . . . . . . . . . . . . . . . 3 . . . . 46 7 . . 35 Distress Signals 90 | . . . . . . . . . . . . . . . . . . . . 2 . . . . 46 7 . . 35 Times Spotted 546 | . 12 7 . 2 6 25 8 6 56 10 22 10 2 29 21 14 3 68 14 75 1 . . 2 21 28 27 43 34 Peak Tracking Total 15 | . 5 3 . 2 2 6 4 3 9 6 6 5 1 6 6 5 3 15 4 14 1 . . 2 12 3 7 8 8 Tactical Retreats 43 | . . . . . . 2 . . 11 4 2 . . 1 1 . . 1 . 9 . . . 1 3 1 . 3 4 Traps | -11 -10 -10 -10 -9 -8 -8 -7 -7 -7 -6 -6 -6 -6 -6 -5 -5 -5 -5 -4 -4 -4 -4 -4 -3 -3 -3 -2 -2 -2 ------- Run | Yrd Mat Min Exi Min Mat Gar Fac Was Fac Fac Ext Cet Arc Hub Fac Upp Upp War Pro Fac Upp Upp Zhi Pro Res Qua Res Tes Frg Traps Triggered 18 | . . . . . . 6 1 . . . 2 . . . 4 . . . . 2 . . . . . 2 . 1 . Indirectly . | . . . . . . . . . . . . . . . . . . . . . . . . . . . . . . Trap Hack Attempts . | . . . . . . . . . . . . . . . . . . . . . . . . . . . . . . Triggered . | . . . . . . . . . . . . . . . . . . . . . . . . . . . . . . Disarmed . | . . . . . . . . . . . . . . . . . . . . . . . . . . . . . . Reprogrammed . | . . . . . . . . . . . . . . . . . . . . . . . . . . . . . . Reused . | . . . . . . . . . . . . . . . . . . . . . . . . . . . . . . Traps Extracted . | . . . . . . . . . . . . . . . . . . . . . . . . . . . . . . Installed . | . . . . . . . . . . . . . . . . . . . . . . . . . . . . . . Triggered . | . . . . . . . . . . . . . . . . . . . . . . . . . . . . . . Time Bombs Activated 1 | . . . . . . . . . . . . . . . . . . . . 1 . . . . . . . . . Exploded 1 | . . . . . . . . . . . . . . . . . . . . 1 . . . . . . . . . Machines | -11 -10 -10 -10 -9 -8 -8 -7 -7 -7 -6 -6 -6 -6 -6 -5 -5 -5 -5 -4 -4 -4 -4 -4 -3 -3 -3 -2 -2 -2 ---------- Run | Yrd Mat Min Exi Min Mat Gar Fac Was Fac Fac Ext Cet Arc Hub Fac Upp Upp War Pro Fac Upp Upp Zhi Pro Res Qua Res Tes Frg Machines Disabled 63 | . . . . . 1 7 . . 5 1 3 . 3 10 3 . . 1 . 10 . . . . . 11 2 5 1 Max in Single Turn 4 | . . . . . 1 2 . . 1 1 . . . 4 1 . . 1 . 2 . . . . . 2 1 1 1 Garrison Access 10 | . . . . . . . . . 2 . . . . . 1 . . . . 3 . . . . . 1 3 . . Garrison Relay 4 | . . . . . . 4 . . . . . . . . . . . . . . . . . . . . . . . Phase Generator 1 | . . . . . . 1 . . . . . . . . . . . . . . . . . . . . . . . Network Hub 2 | . . . . . . . . . . . . . . 2 . . . . . . . . . . . . . . . Energy Cycler 1 | . . . . . . . . . . . 1 . . . . . . . . . . . . . . . . . . Machines Repaired . | . . . . . . . . . . . . . . . . . . . . . . . . . . . . . . Machines Dismantled . | . . . . . . . . . . . . . . . . . . . . . . . . . . . . . . Machines Sabotaged . | . . . . . . . . . . . . . . . . . . . . . . . . . . . . . . Overloaded Fab Kills . | . . . . . . . . . . . . . . . . . . . . . . . . . . . . . . Hacking | -11 -10 -10 -10 -9 -8 -8 -7 -7 -7 -6 -6 -6 -6 -6 -5 -5 -5 -5 -4 -4 -4 -4 -4 -3 -3 -3 -2 -2 -2 --------- Run | Yrd Mat Min Exi Min Mat Gar Fac Was Fac Fac Ext Cet Arc Hub Fac Upp Upp War Pro Fac Upp Upp Zhi Pro Res Qua Res Tes Frg Machines Accessed 113 | . 2 1 1 . 5 5 2 . 8 9 15 3 1 6 5 . . 4 . 16 . . 6 . 2 11 1 2 8 Terminals 71 | . 2 1 . . 4 5 2 . 3 5 14 3 . 6 1 . . . . 8 . . . . 2 7 1 1 6 Fabricators 7 | . . . . . . . . . 3 1 . . . . . . . . . 2 . . . . . . . 1 . Repair Stations 2 | . . . . . . . . . . . 1 . . . 1 . . . . . . . . . . . . . . Recycling Units 5 | . . . . . . . . . . 2 . . . . 1 . . . . 2 . . . . . . . . . Scanalyzers 8 | . . . . . . . . . . 1 . . . . 1 . . . . 1 . . . . . 3 . . 2 Garrison Access 8 | . . . . . 1 . . . 2 . . . . . 1 . . . . 3 . . . . . 1 . . . Total Hacks 394 | . 5 2 1 . 10 9 7 . 16 25 33 7 3 21 24 . . 9 . 113 . . 22 . 8 37 2 8 32 Successful 226 | . 4 1 1 . 5 2 1 . 8 13 19 3 3 11 16 . . 9 . 70 . . 22 . 5 23 . 3 7 Failed 167 | . 1 1 . . 5 7 6 . 8 12 14 4 . 10 8 . . . . 42 . . . . 3 14 2 5 25 Catastrophic 32 | . . . . . . 1 . . 5 2 1 1 . 2 1 . . . . 9 . . . . 2 1 1 2 4 Database Lockouts 1 | . . . . . . . . . . . . . . . . . . . . 1 . . . . . . . . . Manual 103 | . 4 . . . 7 . 2 . 3 2 3 1 . 9 5 . . . . 43 . . . . 2 7 . 1 14 Terminals 248 | . 5 2 . . 9 9 7 . 6 13 31 7 . 21 4 . . . . 68 . . . . 8 25 2 5 26 Fabricators 27 | . . . . . . . . . 6 2 . . . . . . . . . 16 . . . . . . . 3 . Repair Stations 5 | . . . . . . . . . . . 2 . . . 3 . . . . . . . . . . . . . . Recycling Units 18 | . . . . . . . . . . 8 . . . . 3 . . . . 7 . . . . . . . . . Scanalyzers 48 | . . . . . . . . . . 2 . . . . 13 . . . . 16 . . . . . 11 . . 6 Garrison Access 13 | . . . . . 1 . . . 4 . . . . . 1 . . . . 6 . . . . . 1 . . . Terminal Hacks 128 | . 3 1 1 . 2 2 1 . 3 3 14 3 3 6 2 . . 9 . 31 . . 22 . 3 14 . 1 4 Record 26 | . . . 1 . . . . . . . . 2 3 . . . . 8 . . . . 10 . . 2 . . . Part Schematic 7 | . . . . . . . . . . . 1 . . . . . . . . 2 . . 4 . . . . . . Robot Schematic 1 | . . . . . . . . . . . 1 . . . . . . . . . . . . . . . . . . Robot Analysis 11 | . 1 . . . 1 . . . . . . . . 1 . . . . . 4 . . 4 . . . . . . Prototype ID Bank 10 | . . . . . . . . . . 1 . . . . . . . . . 3 . . 4 . . 2 . . . Open Door 10 | . . . . . . . . . . . 7 1 . . . . . 1 . . . . . . . 1 . . . Level Access Points 1 | . . . . . . . . . . . . . . . . . . . . 1 . . . . . . . . . Branch Access Points 3 | . . . . . . . . . . 1 1 . . . . . . . . 1 . . . . . . . . . Emergency Access Points 4 | . 1 . . . . 1 . . . . . . . . . . . . . 1 . . . . . . . . 1 Terminal Index 2 | . . . . . . . . . . . . . . . . . . . . . . . . . 1 1 . . . Fabricator Index 1 | . . . . . . . . . . . . . . . . . . . . 1 . . . . . . . . . Garrison Index 1 | . . . . . . . . . . . . . . . . . . . . . . . . . . 1 . . . Alert Level 6 | . . . . . . . . . . . . . . . . . . . . 5 . . . . 1 . . . . Unreport Threat 11 | . 1 . . . . . . . . . 2 . . 1 . . . . . 6 . . . . . 1 . . . Locate Traps 10 | . . . . . 1 . . . 2 . 1 . . . 1 . . . . 3 . . . . . 2 . . . Assault Status 1 | . . . . . . . . . . . . . . . . . . . . 1 . . . . . . . . . Recall Extermination 1 | . . . . . . . . . . . . . . . . . . . . . . . . . . 1 . . . Recall Reinforcements 2 | . . . . . . . . . . . . . . 1 . . . . . . . . . . . 1 . . . Hauler Manifests 1 | . . . . . . . . . . . . . . 1 . . . . . . . . . . . . . . . Registered Components 1 | . . . . . . . . . . . . . . . . . . . . 1 . . . . . . . . . Registered Prototypes 1 | . . . . . . . . . . 1 . . . . . . . . . . . . . . . . . . . Zone Layout 15 | . . 1 . . . . 1 . 1 . 1 . . 2 1 . . . . 2 . . . . 1 2 . . 3 Garrison Registry 1 | . . . . . . 1 . . . . . . . . . . . . . . . . . . . . . . . Protovariant Controls 1 | . . . . . . . . . . . . . . . . . . . . . . . . . . . . 1 . Fabricator Hacks 10 | . . . . . . . . . 2 1 . . . . . . . . . 6 . . . . . . . 1 . Network Status 5 | . . . . . . . . . 2 1 . . . . . . . . . 2 . . . . . . . . . Load Schematic 1 | . . . . . . . . . . . . . . . . . . . . 1 . . . . . . . . . Build 4 | . . . . . . . . . . . . . . . . . . . . 3 . . . . . . . 1 . Repair Station Hacks 4 | . . . . . . . . . . . 2 . . . 2 . . . . . . . . . . . . . . Scan Component 2 | . . . . . . . . . . . 1 . . . 1 . . . . . . . . . . . . . . Repair 2 | . . . . . . . . . . . 1 . . . 1 . . . . . . . . . . . . . . Recycling Unit Hacks 8 | . . . . . . . . . . 6 . . . . . . . . . 2 . . . . . . . . . Recycle Component 2 | . . . . . . . . . . 2 . . . . . . . . . . . . . . . . . . . Process 2 | . . . . . . . . . . 2 . . . . . . . . . . . . . . . . . . . Report Inventory 2 | . . . . . . . . . . . . . . . . . . . . 2 . . . . . . . . . Retrieve Matter 2 | . . . . . . . . . . 2 . . . . . . . . . . . . . . . . . . . Scanalyzer 29 | . . . . . . . . . . 2 . . . . 9 . . . . 13 . . . . . 4 . . 1 Insert Component 13 | . . . . . . . . . . 1 . . . . 3 . . . . 4 . . . . . 4 . . 1 Analyze 16 | . . . . . . . . . . 1 . . . . 6 . . . . 9 . . . . . . . . . Garrison Access Hacks 5 | . . . . . 1 . . . . . . . . . 1 . . . . 2 . . . . . 1 . . . Unlock Access 1 | . . . . . 1 . . . . . . . . . . . . . . . . . . . . . . . . Seal Access 4 | . . . . . . . . . . . . . . . 1 . . . . 2 . . . . . 1 . . . Unauthorized Hacks 42 | . 1 . . . 2 . . . 3 1 3 . . 5 2 . . . . 16 . . . . 2 4 . 1 2 Terminals 30 | . 1 . . . 2 . . . 1 1 3 . . 5 1 . . . . 8 . . . . 2 3 . 1 2 Track 4 | . . . . . . . . . . . . . . . . . . . . 2 . . . . . 1 . . 1 Assimilate 2 | . . . . . . . . . . . . . . 1 . . . . . 1 . . . . . . . . . Botnet 13 | . 1 . . . 2 . . . 1 1 1 . . 2 1 . . . . 2 . . . . 1 . . 1 . Disrupt 7 | . . . . . . . . . . . 1 . . 1 . . . . . 2 . . . . . 2 . . 1 Operators 4 | . . . . . . . . . . . 1 . . 1 . . . . . 1 . . . . 1 . . . . Fabricators 4 | . . . . . . . . . 1 . . . . . . . . . . 3 . . . . . . . . . Fabnet 2 | . . . . . . . . . . . . . . . . . . . . 2 . . . . . . . . . Haulers 2 | . . . . . . . . . 1 . . . . . . . . . . 1 . . . . . . . . . Repair Stations . | . . . . . . . . . . . . . . . . . . . . . . . . . . . . . . Recycling Units 5 | . . . . . . . . . . . . . . . 1 . . . . 4 . . . . . . . . . Monitor 1 | . . . . . . . . . . . . . . . . . . . . 1 . . . . . . . . . Recyclers 2 | . . . . . . . . . . . . . . . 1 . . . . 1 . . . . . . . . . Mask 2 | . . . . . . . . . . . . . . . . . . . . 2 . . . . . . . . . Scanalyzers 1 | . . . . . . . . . . . . . . . . . . . . . . . . . . 1 . . . Researchers 1 | . . . . . . . . . . . . . . . . . . . . . . . . . . 1 . . . Garrison Access 2 | . . . . . . . . . 1 . . . . . . . . . . 1 . . . . . . . . . Jam 2 | . . . . . . . . . 1 . . . . . . . . . . 1 . . . . . . . . . Data Cores Recovered . | . . . . . . . . . . . . . . . . . . . . . . . . . . . . . . Used . | . . . . . . . . . . . . . . . . . . . . . . . . . . . . . . Hacking Detections 81 | . 2 1 . . 4 4 2 . 7 8 9 3 . 6 3 . . . . 12 . . . . 2 8 1 2 7 Full Trace Events 7 | . 1 . . . . . . . 1 3 1 . . . . . . . . 1 . . . . . . . . . Feedback Events 1 | . . . . . . . . . . . 1 . . . . . . . . . . . . . . . . . . Corruption 1 | . . . . . . . . . . . 1 . . . . . . . . . . . . . . . . . . Feedback Blocked . | . . . . . . . . . . . . . . . . . . . . . . . . . . . . . . Robot Schematics Acquired 3 | . . . . . . . . . . . 1 . . . . . . . . . . . . . . . . 2 . Robots Built . | . . . . . . . . . . . . . . . . . . . . . . . . . . . . . . Authchips . | . . . . . . . . . . . . . . . . . . . . . . . . . . . . . . Time . | . . . . . . . . . . . . . . . . . . . . . . . . . . . . . . Total Robot Build Rating . | . . . . . . . . . . . . . . . . . . . . . . . . . . . . . . Part Schematics Acquired 19 | . . . . . . . . . . 1 1 . . . 3 . . . . 5 . . 4 . . . . 5 . Parts Built 5 | . . . . . . . . . . . . . . . . . . . . 4 . . . . . . . 1 . Authchips . | . . . . . . . . . . . . . . . . . . . . . . . . . . . . . . Time 313 | . . . . . . . . . . . . . . . . . . . . 202 . . . . . . . 111 . Total Part Build Rating 43 | . . . . . . . . . . . . . . . . . . . . 34 . . . . . . . 9 . Parts Repaired 2 | . . . . . . . . . . . 1 . . . 1 . . . . . . . . . . . . . . Time 216 | . . . . . . . . . . . 108 . . . 108 . . . . . . . . . . . . . . Parts Recycled 2 | . . . . . . . . . . 2 . . . . . . . . . . . . . . . . . . . Recycled Matter 149 | . . . . . . . . . . 149 . . . . . . . . . . . . . . . . . . . Retrieved Matter 149 | . . . . . . . . . . 149 . . . . . . . . . . . . . . . . . . . Retrieved Components . | . . . . . . . . . . . . . . . . . . . . . . . . . . . . . . Parts Scanalyzed 8 | . . . . . . . . . . 1 . . . . 3 . . . . 4 . . . . . . . . . Part Schematics Acquired 7 | . . . . . . . . . . 1 . . . . 3 . . . . 3 . . . . . . . . . Parts Damaged 1 | . . . . . . . . . . 1 . . . . . . . . . . . . . . . . . . . Bothacking | -11 -10 -10 -10 -9 -8 -8 -7 -7 -7 -6 -6 -6 -6 -6 -5 -5 -5 -5 -4 -4 -4 -4 -4 -3 -3 -3 -2 -2 -2 ------------ Run | Yrd Mat Min Exi Min Mat Gar Fac Was Fac Fac Ext Cet Arc Hub Fac Upp Upp War Pro Fac Upp Upp Zhi Pro Res Qua Res Tes Frg Used RIF Installer . | . . . . . . . . . . . . . . . . . . . . . . . . . . . . . . Robots Hacked 15 | . . . . . . . . . . . . . . . . . . . . . . . . . 6 . 8 1 . Non-combat . | . . . . . . . . . . . . . . . . . . . . . . . . . . . . . . Combat 15 | . . . . . . . . . . . . . . . . . . . . . . . . . 6 . 8 1 . Robot Hacks Applied 3 | . . . . . . . . . . . . . . . . . . . . . . . . . . . 2 1 . parse_system 3 | . . . . . . . . . . . . . . . . . . . . . . . . . . . 2 1 . Relay Couplers Released 30 | . . . . . . 19 . . 3 . . . . . . . . . . 3 . . . . . . 5 . . Machine Destruction 30 | . . . . . . 19 . . 3 . . . . . . . . . . 3 . . . . . . 5 . . Fabnet Peak Effective % 6 | . . . . . . . . . . . . . . . . . . . . . . . . 6 6 6 2 2 2 Autooverrided 12 | . . . . . . . . . . . . . . . . . . . . . . . . . 6 . 6 . . Robots Rewired 14 | . . . 2 . . . . . . . 12 . . . . . . . . . . . . . . . . . . Allies Hacked . | . . . . . . . . . . . . . . . . . . . . . . . . . . . . . . Hacks Repelled . | . . . . . . . . . . . . . . . . . . . . . . . . . . . . . . Allies | -11 -10 -10 -10 -9 -8 -8 -7 -7 -7 -6 -6 -6 -6 -6 -5 -5 -5 -5 -4 -4 -4 -4 -4 -3 -3 -3 -2 -2 -2 -------- Run | Yrd Mat Min Exi Min Mat Gar Fac Was Fac Fac Ext Cet Arc Hub Fac Upp Upp War Pro Fac Upp Upp Zhi Pro Res Qua Res Tes Frg Total Allies 69 | . . 4 2 . . 2 . 19 . . 25 5 . . . . . . . . . . . . 6 . 6 . . Largest Group 19 | . . 3 3 3 2 2 . 19 12 . 12 12 12 10 . . . . . . . . . . 2 . 2 . . Highest-Rated Group 832 | . . 47 47 45 29 62 . 465 336 . 369 832 832 656 . . . . . . . . . . 204 . 88 . . Highest-Rated Ally 153 | . . 31 31 21 21 31 . 35 31 . 153 153 145 96 . . . . . . . . . . 148 . 82 . . Initial Warlord ECA Mod 83 | . . . . . . . 6 6 6 5 5 5 5 5 4 4 4 4 3 3 3 3 3 2 2 2 1 1 1 Total Orders . | . . . . . . . . . . . . . . . . . . . . . . . . . . . . . . Ally Attacks 680 | . . 33 . 6 20 9 . 119 79 . 178 36 21 162 . . . . . . . . . . 8 . 9 . . Total Damage 15276 | . . 357 . 107 327 83 . 2705 1129 . 2921 1316 503 5272 . . . . . . . . . . 259 . 297 . . Kills 105 | . . 6 . 1 5 2 . 7 12 . 23 10 4 34 . . . . . . . . . . 1 . . . . Allies Corrupted . | . . . . . . . . . . . . . . . . . . . . . . . . . . . . . . Allies Melted 1 | . . . . . . . . . . . 1 . . . . . . . . . . . . . . . . . . Intel | -11 -10 -10 -10 -9 -8 -8 -7 -7 -7 -6 -6 -6 -6 -6 -5 -5 -5 -5 -4 -4 -4 -4 -4 -3 -3 -3 -2 -2 -2 ------- Run | Yrd Mat Min Exi Min Mat Gar Fac Was Fac Fac Ext Cet Arc Hub Fac Upp Upp War Pro Fac Upp Upp Zhi Pro Res Qua Res Tes Frg Active Infowar (turns) 14682 | . . . . . 220 43 370 355 1408 1306 251 . . . 1361 643 749 776 . 1006 79 68 69 54 515 1782 1509 1535 583 Sensors 8588 | . . . . . 111 . 366 355 1274 1306 251 . . . 1361 643 749 776 . 904 79 68 67 54 224 . . . . Structural 2393 | . . . . . 220 43 368 355 1407 . . . . . . . . . . . . . . . . . . . . Jamming 6324 | . . . . . . . . . . . . . . . . . . . . 130 79 68 69 54 515 1782 1509 1535 583 Robot Analysis Total 11 | . 1 . . . 1 . . . . . . . . 1 . . . . . 4 . . 4 . . . . . . Derelict Logs Recovered 9 | . . 2 . 2 . . . . . . . . . . . 1 1 . 1 . 1 1 . . . . . . . Drone Launches . | . . . . . . . . . . . . . . . . . . . . . . . . . . . . . . Drone Recoveries . | . . . . . . . . . . . . . . . . . . . . . . . . . . . . . . Exploration | -11 -10 -10 -10 -9 -8 -8 -7 -7 -7 -6 -6 -6 -6 -6 -5 -5 -5 -5 -4 -4 -4 -4 -4 -3 -3 -3 -2 -2 -2 ------------- Run | Yrd Mat Min Exi Min Mat Gar Fac Was Fac Fac Ext Cet Arc Hub Fac Upp Upp War Pro Fac Upp Upp Zhi Pro Res Qua Res Tes Frg Turns Passed 21632 | 53 243 511 459 527 228 901 420 355 1763 1323 1127 452 133 796 1605 643 749 933 427 1440 79 68 69 54 515 1782 1510 1535 932 Spaces Moved 15830 | 38 192 511 413 342 136 542 365 205 1093 2263 1047 232 74 403 845 332 439 490 242 1164 233 196 148 153 712 956 733 722 609 Core 950 | 1 . . . . . . . . 500 385 11 . . . . . . . . . . . . . . . . . 53 Treads 5126 | . . . . 222 . . . 114 541 . . 206 74 403 845 332 439 490 242 452 . . . . . . 5 438 323 Legs 296 | . . . . . . . . . . . 198 26 . . . . . . . . . . . . . . . . 72 Wheels 4911 | 37 192 511 413 120 136 542 365 91 52 167 . . . . . . . . . 46 . . . . 195 956 728 284 76 Hover . | . . . . . . . . . . . . . . . . . . . . . . . . . . . . . . Flight 4547 | . . . . . . . . . . 1711 838 . . . . . . . . 666 233 196 148 153 517 . . . 85 Fastest Speed 26 | 50 90 90 90 105 105 100 93 93 50 34 34 120 160 160 160 162 162 163 166 28 34 34 34 34 32 130 130 130 26 Average Speed 108 | 90 90 90 102 140 106 113 97 131 139 41 51 155 160 160 160 162 162 164 166 88 34 34 34 34 57 159 154 159 133 Slowest Speed 250 | 100 90 90 105 160 120 150 108 160 240 100 120 160 160 160 165 163 163 166 166 166 34 34 117 34 150 170 250 170 210 Overloaded Moves 26 | . . . . . . . . . . . . . . . . . . . . 9 . . . . . . . . 17 Propulsion Burnouts . | . . . . . . . . . . . . . . . . . . . . . . . . . . . . . . Robots Hopped 31 | . . . . . . . . . . 7 11 . . . . . . . . 5 . . . . 6 . . . 2 Potential Cave-ins 9 | . . . . . . . . . . . . . . . . . . 4 . . . . . . . . . . 5 Cave-ins Triggered 2 | . . . . . . . . . . . . . . . . . . 1 . . . . . . . . . . 1 Teleports 4 | . . . . . . . . . . . . . . . . . . . . . . . . . . 2 . 1 1 Exploration Rate (%) 52 | 3 39 93 88 62 23 74 12 84 40 37 87 79 79 54 22 58 59 69 50 34 52 36 62 30 24 91 25 69 38 Regions Visited 29 Branch Regions 18 Pre-discovered Areas 8 | . . . 1 1 . . . . . . . . . . . 1 . 1 . . . 1 3 . . . . . . Known Exits Taken 12 | . . . . . 1 . . . . 1 1 . . 1 1 1 . . 1 1 1 . . 1 1 . 1 . . Unknown Exits Taken 14 | 1 1 1 1 1 . . . . 1 . . 1 1 . . . 1 1 . . . 1 1 . . 1 . 1 . Scrap Searched 11 | . . 1 . 1 . . . . . . . . . . . 1 3 . 1 . 2 1 . 1 . . . . . Spaces Dug 58 | . . . . . 3 8 2 . 10 6 . . . 1 . . . . . 5 . . . . 10 4 6 3 . Terrain Destroyed 886 | . . 48 . . 12 99 2 1 28 8 . . . 352 2 5 1 18 6 97 . . . . 10 21 101 49 26 Melee 18 | . . . . . 1 . 2 . 2 6 . . . . . . . . . . . . . . 7 . . . . Projectile 146 | . . . . . . 1 . 1 14 2 . . . 4 2 5 1 18 6 29 . . . . 3 21 16 23 . AOE 670 | . . 48 . . 11 98 . . 12 . . . . 348 . . . . . 68 . . . . . . 85 . . Terrain Rammed . | . . . . . . . . . . . . . . . . . . . . . . . . . . . . . . Walls Destroyed . | . . . . . . . . . . . . . . . . . . . . . . . . . . . . . . Machines Disabled . | . . . . . . . . . . . . . . . . . . . . . . . . . . . . . . Actions | -11 -10 -10 -10 -9 -8 -8 -7 -7 -7 -6 -6 -6 -6 -6 -5 -5 -5 -5 -4 -4 -4 -4 -4 -3 -3 -3 -2 -2 -2 --------- Run | Yrd Mat Min Exi Min Mat Gar Fac Was Fac Fac Ext Cet Arc Hub Fac Upp Upp War Pro Fac Upp Upp Zhi Pro Res Qua Res Tes Frg Total 18942 | 56 221 554 450 377 185 718 405 277 1243 2591 1594 327 89 492 1006 381 458 556 254 1459 232 196 165 153 784 1129 1003 911 676 Wait 1456 | 3 1 34 5 5 3 21 3 26 41 252 460 68 11 26 75 16 2 6 1 144 . . . . 6 70 152 16 9 Move 15738 | 37 191 510 412 341 135 541 365 204 1092 2248 1024 231 73 402 844 331 438 488 241 1153 232 195 147 152 699 955 732 721 604 Hop 31 | . . . . . . . . . . 7 11 . . . . . . . . 5 . . . . 6 . . . 2 Pick Up 205 | 10 5 1 3 11 5 17 6 10 13 17 5 6 . 2 11 2 3 8 3 20 . . 2 . 3 14 7 13 8 Fast Attach 110 | . . . . . . 2 . 2 5 6 9 4 2 4 7 2 1 3 . 8 . 1 6 1 14 2 11 17 3 Attach 148 | 6 1 . . 3 5 7 2 . 19 12 5 2 . 1 5 2 3 3 1 22 . . . . 14 9 1 13 12 Detach 46 | . . . . . 1 . . . 3 5 5 2 1 1 2 . . . . 9 . . . . 11 2 1 3 . Swap 122 | . 1 1 1 5 14 18 8 7 2 3 3 3 . 4 8 1 2 7 . 10 . . 2 . 1 5 9 6 1 Drop 193 | . . 1 1 4 1 10 5 18 9 12 4 11 2 9 6 . 2 9 1 17 . . 8 . 11 6 14 23 9 Fire 664 | . 22 7 . 3 15 38 9 10 56 13 . . . 43 48 27 7 31 7 68 . . . . 4 58 76 95 27 Melee 107 | . . . . 5 6 40 7 . 3 16 15 . . . . . . . . . . . . . 15 . . . . Ram 1 | . . . . . . . . . . . . . . . . . . . . 1 . . . . . . . . . Kick . | . . . . . . . . . . . . . . . . . . . . . . . . . . . . . . Crush 1 | . . . . . . . . . . . . . . . . . . . . . . . . . . . . 1 . Escape Stasis 56 | . . . . . . 24 . . . . 18 . . . . . . 1 . 1 . . . . . 8 . 3 1 Rewire 63 | . . . 28 . . . . . . . 35 . . . . . . . . . . . . . . . . . . Trap 1 | . . . . . . . . . . . . . . . . . . . . 1 . . . . . . . . . Miscellaneous . | . . . . . . . . . . . . . . . . . . . . . . . . . . . . . . Route ------- -11/Scrapyard -10/Materials (discovered 2 exits: [*Mat] / *Min) -10/Mines (discovered 4 exits: [*Mat x2] / *Exi / [*Sub]) -10/Exiles -9/Mines (discovered 2 exits: *Mat x2) -8/Materials (discovered 2 exits: Fac / Gar) -8/Garrison (discovered 3 exits: *Fac x3) -7/Factory -7/Waste -7/Factory -6/Factory (discovered 5 exits: *Fac / *Low x2 / *Ext x2) -6/Extension (discovered 2 exits: *Fac / *Cet) -6/Cetus (discovered 2 exits: *Fac / *Arc) -6/Archives (discovered 2 exits: *Fac / *Hub) -6/Hub_04(d) (discovered 2 exits: *Fac x2) -5/Factory (discovered 2 exits: *Fac / *Upp) -5/Upper Caves -5/Upper Caves (discovered 2 exits: *Fac / *War) -5/Warlord -4/Proximity Caves -4/Factory (discovered 7 exits: *Res x4 / *Upp x2 / Arm) -4/Upper Caves -4/Upper Caves -4/Zhirov -3/Proximity Caves -3/Research (discovered 3 exits: *Res x2 / *Qua) -3/Quarantine -2/Research -2/Testing (discovered 2 exits: [*Sec] / *Frg) -2/Protoforge History --------- Turn | Location | Event 17 | -11/Scrapyard | Discovered new exit (range 16) 54 | -11/Scrapyard | Entered Materials 195 | -10/Materials | Discovered new exit (range 16) 198 | -10/Materials | Discovered new exit (range 13) 297 | -10/Materials | Entered Mines 304 | -10/Mines | Build established: Mutant 331 | -10/Mines | Met a Derelict bent on vengeance 381 | -10/Mines | Assisted by bots powering up and referring to "LRC-V3" 411 | -10/Mines | Received a Rocket Launcher from a helpful Derelict 428 | -10/Mines | Discovered new exit (range 9) 484 | -10/Mines | Learned 4 Materials zone layouts 526 | -10/Mines | Discovered new exit (range 14) 651 | -10/Mines | Discovered new exit (range 16) 666 | -10/Mines | Escorted by a lone wolf Derelict 785 | -10/Mines | Deemed a non-threat by the Exiles lab entrance 785 | -10/Mines | Discovered new exit (range 5) 808 | -10/Mines | Entered Exiles 808 | -10/Exiles | Found Exiles lab destroyed 808 | -10/Exiles | Accompanied by 2 allies 1197 | -10/Exiles | Learned location of Zion (-7) 1249 | -10/Exiles | Discovered new exit (range 14) 1267 | -10/Exiles | Entered Mines 1267 | -9/Mines | Accompanied by 3 allies 1394 | -9/Mines | Discovered new exit (range 7) 1533 | -9/Mines | Found a damaged Exp. Sensor Array with a note attached 1536 | -9/Mines | Found Prototype Device 1778 | -9/Mines | Discovered new exit (range 11) 1794 | -9/Mines | Entered Materials 1794 | -8/Materials | Accompanied by 2 allies 1794 | -8/Materials | Evolved 4 slots: Utility x4 1795 | -8/Materials | Identified exit to Factory 1795 | -8/Materials | Identified Exp. Sensor Array 1932 | -8/Materials | Garrison activated, responded to threat 2020 | -8/Materials | Identified exit to Garrison 2022 | -8/Materials | Entered Garrison 2022 | -8/Garrison | Accompanied by 1 ally 2042 | -8/Garrison | Phase Generator disabled 2078 | -8/Garrison | Garrison Relay disabled 2091 | -8/Garrison | Garrison Relay disabled 2222 | -8/Garrison | Triggered checkpoint 2328 | -8/Garrison | Triggered checkpoint 2345 | -8/Garrison | Rescued a captive Derelict 2348 | -8/Garrison | Rescued a captive Derelict 2398 | -8/Garrison | Garrison Relay disabled 2428 | -8/Garrison | Discovered exit to Factory (range 11) 2542 | -8/Garrison | Triggered checkpoint 2595 | -8/Garrison | Triggered checkpoint 2669 | -8/Garrison | Discovered exit to Factory (range 12) 2718 | -8/Garrison | Triggered checkpoint 2776 | -8/Garrison | Lost 4 parts (1p3u) 2795 | -8/Garrison | Garrison Relay disabled 2797 | -8/Garrison | Build established: Scavenger-Mutant 2802 | -8/Garrison | Discovered exit to Factory (range 52) 2802 | -8/Garrison | Discovered exit to Factory (range 7) 2802 | -8/Garrison | Discovered exit to Factory (range 54) 2923 | -8/Garrison | Entered Factory 2923 | -7/Factory | Evolved 2 slots: Propulsion x1, Utility x1 3343 | -7/Factory | Sucked down chute 3343 | -7/Factory | Entered Waste 3349 | -7/Waste | Spotted C-40 Crusher 3435 | -7/Waste | Warlord forces began an assault 3437 | -7/Waste | Spotted C-40 Crusher 3446 | -7/Waste | Spotted C-40 Crusher 3446 | -7/Waste | Destroyed C-40 Crusher 3447 | -7/Waste | Spotted C-40 Crusher 3448 | -7/Waste | Allies destroyed C-40 Crusher 3450 | -7/Waste | Spotted C-40 Crusher 3458 | -7/Waste | Allies destroyed C-40 Crusher 3471 | -7/Waste | Allies destroyed C-40 Crusher 3474 | -7/Waste | Allies destroyed C-40 Crusher 3483 | -7/Waste | Spotted C-40 Crusher 3490 | -7/Waste | Allies destroyed C-40 Crusher 3498 | -7/Waste | Lost 7 allies 3518 | -7/Waste | Found Damper Plating 3559 | -7/Waste | Found Prototype Processor 3592 | -7/Waste | Discovered new exit (range 11) 3669 | -7/Waste | Identified exit to Factory 3698 | -7/Waste | Entered Factory 3698 | -7/Factory | Accompanied by 12 allies 3741 | -7/Factory | Build established: Scavenger-Skirmisher 3928 | -7/Factory | Lost 4 allies 4878 | -7/Factory | Lost 3 allies 4906 | -7/Factory | Garrison activated, responded to threat 5109 | -7/Factory | Identified Exp. Melee Analysis Suite 5165 | -7/Factory | Core integrity fell below 50% 5177 | -7/Factory | Released all parts (5) 5203 | -7/Factory | Lost 14 parts (2p4n5u3w) 5298 | -7/Factory | First assault squad dispatched 5315 | -7/Factory | Discovered new exit (range 16) 5398 | -7/Factory | Build established: Mutant 5461 | -7/Factory | Entered another Factory area 5461 | -6/Factory | Evolved 2 slots: Propulsion x2 5492 | -6/Factory | Identified exit to Lower Caves 5492 | -6/Factory | Identified exit to Extension 6027 | -6/Factory | Discovered new exit (range 5) 6037 | -6/Factory | Identified exit to Factory 6230 | -6/Factory | Found Prototype Processor 6230 | -6/Factory | Identified Exp. Targeting Computer 6517 | -6/Factory | Cargo convoy interrupted 6626 | -6/Factory | Spotted B-75 Beast 6704 | -6/Factory | Build established: Hacker-Gladiator 6784 | -6/Factory | Entered Extension 6806 | -6/Extension | Rescued a captive Derelict 6827 | -6/Extension | Rescued a captive Derelict 6827 | -6/Extension | Rescued a captive Derelict 6849 | -6/Extension | Allied Derelicts emerged from ambush trap array 6885 | -6/Extension | Rescued a captive Derelict 6885 | -6/Extension | Rescued a captive Derelict 6907 | -6/Extension | Rescued a captive Derelict 6907 | -6/Extension | Rescued a captive Derelict 6925 | -6/Extension | Repaired Exp. Sensor Array? 7481 | -6/Extension | Spotted B-75 Beast 7496 | -6/Extension | Allies destroyed B-75 Beast 7513 | -6/Extension | Lost 4 allies 7535 | -6/Extension | Rescued a captive Derelict 7535 | -6/Extension | Rescued a captive Derelict 7555 | -6/Extension | Rescued a captive Derelict 7563 | -6/Extension | Identified exit to Cetus 7715 | -6/Extension | Lost 9 allies 7721 | -6/Extension | Rescued a captive Derelict 7722 | -6/Extension | Rescued a captive Derelict 7725 | -6/Extension | Energy Cycler disabled 7725 | -6/Extension | Rescued a captive Derelict 7746 | -6/Extension | Rescued a captive Derelict 7755 | -6/Extension | Rescued A7 7852 | -6/Extension | Discovered exit to Factory (range 10) 7911 | -6/Extension | Entered Cetus 7911 | -6/Cetus | Accompanied by 7 allies (A7) 7916 | -6/Cetus | Acquired a Cetus Manufacturing Module code from A7 7927 | -6/Cetus | Spotted Cetus Guard 7927 | -6/Cetus | Spotted Cetus Guard 7929 | -6/Cetus | Spotted Cetus Guard 7931 | -6/Cetus | Spotted Cetus Guard 7936 | -6/Cetus | Allies destroyed Cetus Guard 7937 | -6/Cetus | Allies destroyed Cetus Guard 7940 | -6/Cetus | Allies destroyed Cetus Guard 7944 | -6/Cetus | Allies destroyed Cetus Guard 8018 | -6/Cetus | Started Cetus Manufacturing Module 8033 | -6/Cetus | Escorted A7 to Cetus Mainframe 8043 | -6/Cetus | Manufactured an Enhanced Grunt 8068 | -6/Cetus | Manufactured an Enhanced Grunt 8093 | -6/Cetus | Manufactured an Enhanced Grunt 8118 | -6/Cetus | Manufactured an Enhanced Grunt 8143 | -6/Cetus | Manufactured an Enhanced Grunt 8173 | -6/Cetus | Discovered new exit (range 16) 8217 | -6/Cetus | Spotted Cetus Guard 8218 | -6/Cetus | Spotted Cetus Guard 8219 | -6/Cetus | Spotted Cetus Guard 8222 | -6/Cetus | Allies destroyed Cetus Guard 8222 | -6/Cetus | Allies destroyed Cetus Guard 8225 | -6/Cetus | Allies destroyed Cetus Guard 8228 | -6/Cetus | Spotted Cetus Guard 8229 | -6/Cetus | Allies destroyed Cetus Guard 8239 | -6/Cetus | Discovered exit to Factory (range 15) 8253 | -6/Cetus | Met Revision 17 8363 | -6/Cetus | Entered Archives 8363 | -6/Archives | Accompanied by 12 allies (A7) 8368 | -6/Archives | Received a hacking code to weaken MAIN.C 8406 | -6/Archives | Unable to access archive contents 8417 | -6/Archives | Discovered exit to Factory (range 15) 8435 | -6/Archives | Unable to access archive contents 8443 | -6/Archives | Discovered new exit (range 16) 8452 | -6/Archives | Unable to access archive contents 8496 | -6/Archives | Entered Hub_04(d) 8496 | -6/Hub_04(d) | Accompanied by 10 allies 8530 | -6/Hub_04(d) | Discovered exit to Factory (range 8) 8541 | -6/Hub_04(d) | Build established: Scavenger-Mutant 8653 | -6/Hub_04(d) | Discovered exit to Factory (range 16) 8846 | -6/Hub_04(d) | First assault squad dispatched 8899 | -6/Hub_04(d) | Network Hub disabled 8914 | -6/Hub_04(d) | Spotted Lightning 8914 | -6/Hub_04(d) | Spotted Lightning 8917 | -6/Hub_04(d) | Spotted Lightning 8926 | -6/Hub_04(d) | Destroyed Lightning 8941 | -6/Hub_04(d) | Allies destroyed Lightning 8955 | -6/Hub_04(d) | Allies destroyed Lightning 8959 | -6/Hub_04(d) | Found Prototype Device 8959 | -6/Hub_04(d) | Identified Exp. Phase Shifter 8964 | -6/Hub_04(d) | Found Prototype Device 8964 | -6/Hub_04(d) | Identified Exp. EM Shield 8969 | -6/Hub_04(d) | Found Exp. Targeting Computer 8974 | -6/Hub_04(d) | Found Prototype Energy Cannon 8974 | -6/Hub_04(d) | Identified EMDS 9110 | -6/Hub_04(d) | Network Hub disabled 9292 | -6/Hub_04(d) | Entered Factory 9292 | -5/Factory | Evolved 2 slots: Propulsion x1, Utility x1 9732 | -5/Factory | Discovered new exit (range 14) 9752 | -5/Factory | Identified exit to Factory 10046 | -5/Factory | Repaired Centrium Heavy Treads 10124 | -5/Factory | Discovered new exit (range 9) 10140 | -5/Factory | Identified exit to Upper Caves 10728 | -5/Factory | Garrison activated, responded to threat 10897 | -5/Factory | Entered Upper Caves 10908 | -5/Upper Caves | Met a Warlord Commander 10909 | -5/Upper Caves | Learned location of Warlord (-5) 10910 | -5/Upper Caves | Warlord Commander delivered Encrypted Comm Array 10914 | -5/Upper Caves | Found Encrypted Comm Array 11066 | -5/Upper Caves | Attracted the attention of an 0b10 checkpoint 11328 | -5/Upper Caves | Encountered a Warlord checkpoint 11359 | -5/Upper Caves | Identified exit to Upper Caves 11540 | -5/Upper Caves | Entered another Upper Caves area 11591 | -5/Upper Caves | Discovered exit to Factory (range 14) 11597 | -5/Upper Caves | Attracted the attention of an 0b10 checkpoint 11946 | -5/Upper Caves | Learned Factory emergency access door positions 12051 | -5/Upper Caves | Discovered new exit (range 7) 12289 | -5/Upper Caves | Entered Warlord 12343 | -5/Warlord | System corruption cleaned by Quarantine Array 12578 | -5/Warlord | Visited the Vortex Lab 12590 | -5/Warlord | Warlord's base attacked by MAIN.C 12593 | -5/Warlord | Found Prototype Energy Cannon 12594 | -5/Warlord | Identified Vortex Driver 12599 | -5/Warlord | Found Prototype Energy Cannon 12600 | -5/Warlord | Identified Vortex Cannon 12604 | -5/Warlord | Found Vortex Cannon 12679 | -5/Warlord | Found Prototype Device 12679 | -5/Warlord | Identified Minesniffer Drone Bay 12759 | -5/Warlord | Learned location of Command (-1) 12760 | -5/Warlord | Learned 4 Armory zone layouts 12760 | -5/Warlord | Learned 4 Access zone layouts 12760 | -5/Warlord | Learned 4 Access zone layouts 12762 | -5/Warlord | Learned Factory recycling unit intel 12762 | -5/Warlord | Learned Armory repair station intel 12762 | -5/Warlord | Learned Research fabricator intel 12844 | -5/Warlord | Met Warlord 12940 | -5/Warlord | Warlord forces counterattacked 13047 | -5/Warlord | P-70 Sage assimilated allied 8C-RIH(Y) 13052 | -5/Warlord | P-70 Sage assimilated allied NL-2DT(M) 13079 | -5/Warlord | Spotted Striker 13081 | -5/Warlord | Lost 9 allies 13089 | -5/Warlord | Spotted Executioner 13107 | -5/Warlord | Destroyed Executioner 13127 | -5/Warlord | Spotted Striker 13127 | -5/Warlord | Spotted Striker 13127 | -5/Warlord | Spotted Executioner 13130 | -5/Warlord | Found Prototype Processor 13134 | -5/Warlord | Crushed by falling debris 13141 | -5/Warlord | Identified Exp. Core Analyzer 13184 | -5/Warlord | Destroyed Executioner 13205 | -5/Warlord | Discovered new exit (range 12) 13208 | -5/Warlord | Lost 28 allies 13222 | -5/Warlord | Entered Proximity Caves 13224 | -4/Proximity Caves | Spotter reported a threat 13225 | -4/Proximity Caves | Spotter reported a threat 13361 | -4/Proximity Caves | Spotter reported a threat 13363 | -4/Proximity Caves | Learned location of 1 exit from Upper Caves 13413 | -4/Proximity Caves | Attracted the attention of an 0b10 checkpoint 13447 | -4/Proximity Caves | Spotter reported a threat 13449 | -4/Proximity Caves | Spotter reported a threat 13515 | -4/Proximity Caves | Found DCF Scrap (13 items) 13564 | -4/Proximity Caves | Spotter reported a threat 13619 | -4/Proximity Caves | Discovered exit to Factory (range 15) 13649 | -4/Proximity Caves | Entered Factory 13649 | -4/Factory | Evolved 2 slots: Power x1, Utility x1 13651 | -4/Factory | Loaded intel: 8 recycling unit locations 13899 | -4/Factory | Search patrols dispatched 13935 | -4/Factory | Identified exit to Research 13938 | -4/Factory | Central database locked down 13976 | -4/Factory | Fabricated Mic. Antimatter Reactor? 14109 | -4/Factory | Fabricated Adv. Heavy Siege Treads (x1) 14149 | -4/Factory | Search patrols dispatched 14309 | -4/Factory | Fabricated Adv. Heavy Siege Treads? 14439 | -4/Factory | Lost 3 parts (3u) 14634 | -4/Factory | Destroyed 8 combat bots 14649 | -4/Factory | First assault squad dispatched 14721 | -4/Factory | Spotted B-86 Titan 14820 | -4/Factory | Lost 8 parts (1p3n2u2w) 14839 | -4/Factory | Identified exit to Upper Caves 14839 | -4/Factory | Identified exit to Armory 14989 | -4/Factory | Found Prototype Hackware 14989 | -4/Factory | Identified Exp. Hacking Suite 15048 | -4/Factory | Core integrity fell below 50% 15089 | -4/Factory | Entered Upper Caves 15090 | -4/Upper Caves | Identified exit to Upper Caves 15099 | -4/Upper Caves | Build established: Hacker-Mutant 15103 | -4/Upper Caves | Encountered a Warlord checkpoint 15133 | -4/Upper Caves | Learned location of 1 exit from Research 15168 | -4/Upper Caves | Entered another Upper Caves area 15233 | -4/Upper Caves | Discovered new exit (range 10) 15236 | -4/Upper Caves | Entered Zhirov 15236 | -4/Zhirov | Discovered new exit (range 3) 15243 | -4/Zhirov | Met Zhirov 15249 | -4/Zhirov | Learned location of Quarantine (-3) 15249 | -4/Zhirov | Learned location of Testing (-2) 15256 | -4/Zhirov | Zhirov requested help retrieving the SGEMP Prototype 15262 | -4/Zhirov | Found Alien Artifact 15262 | -4/Zhirov | Identified Integrated Dissipator 15262 | -4/Zhirov | Installed Integrated Dissipator, increased core heat dissipation (+20) 15292 | -4/Zhirov | Found Alien Artifact 15305 | -4/Zhirov | Entered Proximity Caves 15350 | -3/Proximity Caves | Discovered exit to Research (range 5) 15359 | -3/Proximity Caves | Entered Research 15359 | -3/Research | Evolved 2 slots: Propulsion x2 15360 | -3/Research | Identified exit to Quarantine 15361 | -3/Research | Loaded intel: 4 fabricator locations 15409 | -3/Research | Discovered new exit (range 9) 15552 | -3/Research | Lost 4 parts (1p2n1u) 15559 | -3/Research | Revision forces began assault on 0b10 15602 | -3/Research | Discovered new exit (range 16) 15680 | -3/Research | Lost 5 allies 15817 | -3/Research | Met up with Revision 17++ 15874 | -3/Research | Entered Quarantine 16061 | -3/Quarantine | Found Alien Artifact 16086 | -3/Quarantine | Identified Transdimensional Reconstructor 16125 | -3/Quarantine | Identified Terrabomb 16156 | -3/Quarantine | Build established: Scavenger-Mutant 16190 | -3/Quarantine | Found Terrabomb 16561 | -3/Quarantine | Found Alien Artifact 16591 | -3/Quarantine | Build established: Hacker-Mutant 16601 | -3/Quarantine | Identified Core Reset Matrix 16843 | -3/Quarantine | Found Alien Artifact 16844 | -3/Quarantine | Identified Dimensional Node Initializer 16844 | -3/Quarantine | Initialized slip node 16854 | -3/Quarantine | Found Transdimensional Reconstructor 16867 | -3/Quarantine | Found Transdimensional Reconstructor 17181 | -3/Quarantine | Cryocooling Duct disabled 17196 | -3/Quarantine | Ambient heat levels rising (+20) 17196 | -3/Quarantine | Non-combat units ordered to evacuate 17207 | -3/Quarantine | Found Alien Artifact 17289 | -3/Quarantine | Warped through subspace to slip node 17302 | -3/Quarantine | Found Transdimensional Reconstructor 17331 | -3/Quarantine | Build established: Scavenger-Mutant 17389 | -3/Quarantine | System corruption reached 10% 17425 | -3/Quarantine | Lost 3 parts (3u) 17430 | -3/Quarantine | Met incapacitated Sigix Warrior 17430 | -3/Quarantine | Lockdown squad dispatched 17434 | -3/Quarantine | Acquired the access code to the Sigix quarantine chamber 17437 | -3/Quarantine | Unlocked Sigix quarantine chamber 17467 | -3/Quarantine | Found Sigix Containment Pod 17484 | -3/Quarantine | Warped through subspace to slip node 17555 | -3/Quarantine | Found Alien Energy Cannon 17555 | -3/Quarantine | Identified Core Cannon 17585 | -3/Quarantine | Cryocooling Duct disabled 17596 | -3/Quarantine | Core integrity fell below 50% 17600 | -3/Quarantine | Ambient heat levels rising (+20) 17600 | -3/Quarantine | Combat units ordered to evacuate 17633 | -3/Quarantine | Discovered new exit (range 8) 17656 | -3/Quarantine | Entered Research 17656 | -2/Research | Warlord forces began assault on 0b10 17656 | -2/Research | Evolved 2 slots: Power x1, Weapon x1 17657 | -2/Research | Identified exit to Testing 17681 | -2/Research | Distinguished unit "Offensive Angels" dispatched to help 17700 | -2/Research | Local machine network offline 17752 | -2/Research | Lost 6 allies 17780 | -2/Research | Found Exp. Target Analyzer 17795 | -2/Research | Found Fusion Bomb Launcher 17935 | -2/Research | Borebot progress halted 17991 | -2/Research | Spotted B-90 Cyclops 18025 | -2/Research | Met up with Warlord 18070 | -2/Research | Build established: Scavenger-Tank 18275 | -2/Research | Borebot progress halted 18395 | -2/Research | Spotted Striker 18403 | -2/Research | Spotted Striker 18410 | -2/Research | Spotted Executioner 18420 | -2/Research | Spotted Executioner 18440 | -2/Research | Found Exp. Core Analyzer 18474 | -2/Research | Lost 4 allies 18549 | -2/Research | Spotted Striker 18555 | -2/Research | Spotted Executioner 18563 | -2/Research | Destroyed Striker 18575 | -2/Research | Destroyed Executioner 18812 | -2/Research | Borebot progress halted 18876 | -2/Research | Build established: Scavenger-Mutant 19160 | -2/Research | Given Cave Seal Controls access code 19166 | -2/Research | Entered Testing 19255 | -2/Testing | Lost 3 allies 19387 | -2/Testing | Spotted Striker 19388 | -2/Testing | Spotted Striker 19416 | -2/Testing | Destroyed Striker 19441 | -2/Testing | Destroyed Striker 19458 | -2/Testing | Spotted Alpha 7 19525 | -2/Testing | Found Prototype Ballistic Gun 19525 | -2/Testing | Identified Multirail 19539 | -2/Testing | Stole the SGEMP Prototype 19678 | -2/Testing | Found Prototype Processor 19678 | -2/Testing | Identified Spectral Analyzer 19753 | -2/Testing | Fabricated Cld. Q-thruster (x1) 19827 | -2/Testing | Found Prototype Ballistic Cannon 19827 | -2/Testing | Identified Perforator 19853 | -2/Testing | Build established: Scavenger-Gunner 19925 | -2/Testing | Warped through subspace 20019 | -2/Testing | Protovariant out of control (PY-FA3LLJILS2) 20019 | -2/Testing | Unleashed a protovariant (PY-FA3LLJILS2) 20101 | -2/Testing | Scanned by Researcher 20106 | -2/Testing | Spotted Investigator 20113 | -2/Testing | Destroyed Investigator 20154 | -2/Testing | Found Prototype Launcher 20154 | -2/Testing | Identified Containment Facilitator 20164 | -2/Testing | Destroyed 9 combat bots 20236 | -2/Testing | Found Prototype Protection 20236 | -2/Testing | Identified Centrium Heavy Armor Plating 20416 | -2/Testing | First assault squad dispatched 20501 | -2/Testing | Destroyed 7 combat bots 20546 | -2/Testing | Spotted Fortress 20691 | -2/Testing | Discovered new exit (range 6) 20691 | -2/Testing | Discovered new exit (range 6) 20701 | -2/Testing | Entered Protoforge 20775 | -2/Protoforge | Identified Subatomic Replicator 20793 | -2/Protoforge | Spotted Hotshot 21118 | -2/Protoforge | Spotted Hotshot 21118 | -2/Protoforge | Spotted Hotshot 21118 | -2/Protoforge | Spotted Hotshot 21118 | -2/Protoforge | Spotted Hotshot 21133 | -2/Protoforge | Destroyed Hotshot 21133 | -2/Protoforge | Destroyed Hotshot 21133 | -2/Protoforge | Destroyed Hotshot 21153 | -2/Protoforge | Superfortress began startup sequence 21199 | -2/Protoforge | Destroyed Hotshot 21217 | -2/Protoforge | System corruption reached 10% 21330 | -2/Protoforge | Lost 4 parts (3n1u) 21331 | -2/Protoforge | Destroyed 7 combat bots 21428 | -2/Protoforge | Build established: Scavenger-Mutant 21448 | -2/Protoforge | Spotted AP7-3 21458 | -2/Protoforge | Spotted AP7-3 21552 | -2/Protoforge | Spotted EXE-6 21552 | -2/Protoforge | Spotted EXE-6 21553 | -2/Protoforge | Lost 7 parts (1p1n3u2w) 21559 | -2/Protoforge | Used Terrabomb 21572 | -2/Protoforge | Crushed by falling debris 21573 | -2/Protoforge | Core integrity fell below 50% 21587 | -2/Protoforge | System corruption reached 30% 21591 | -2/Protoforge | Warped through subspace 21600 | -2/Protoforge | Spotted Decapitator 21600 | -2/Protoforge | Spotted Decapitator 21601 | -2/Protoforge | Used Subatomic Replicator to replicate Sigix Containment Pod 21609 | -2/Protoforge | Spotted EXE-6 21609 | -2/Protoforge | Spotted EXE-6 21612 | -2/Protoforge | Core integrity fell below 20% 21632 | -2/Protoforge | Lost 8 parts (1p5n1u1w) 21633 | -2/Protoforge | Destroyed by Decapitator with Experimental Terror Saw Last Messages --------------- 21601_ Replicated Sigix Containment Pod. 21601_ Adv. Remote Datajack destroyed. 21602_ Sigix Containment Pod: "ZVPTKWGIWG MFDVFEKHCSXU TQI ON GBWQ JOYSTLHAMEL" 21602_ Sigix Containment Pod: "Q BVHXLF" 21602_ Acquired Sigix Containment Pod. 21605_ Adv. Coolant Injector severed. 21606_ System corrupted: Heat flow error (+100). 21607_ Imp. Q-thruster severed. 21609_ Knocked back. 21612_ ALERT: Potential suspicious activity detected, Programmers report to Protoforge Zone 2N. 21616_ Adv. Target Analyzer severed. 21620_ K-01 Serf cleans the Machine. 21620_ Acquired 69 matter. 21621_ T|IN/HBZ17PMUB3GU3NFF:PV,QP# < BUAMGS 21622_ N-04 Retriever collects Corrupted Antigrav System. 21627_ K-01 Serf collects debris. Map ----- +----------------------------------------------------+ | ?????????????????????????????????????????????????? | | ?????????????????????????????????????????????????? | | ?????????????????????????????????????????????????? | | ?????????????????????????????????????????????????? | | ?????????????????????????????????????????????????? | | ?????????????????????????????????????????????????? | | ?????????????????????????????????????????????????? | | ?????????????????????????????????????????????????? | | ?????????????????????????????????????????????????? | | ???????????????????????????????????????????????### | | ????????????????????????????????????????????# | | ????????????????????????????????????????????# " | | ????????????????????????????????????????????# """ | | ????????????????????????????#########???????# "" | | ???????????????????????????? ???????# "" | | ???????????????????????????? ???????# | | ?????????????????????????????" " " "????????# " | | ?????????????????????????????" " " "????????# | | ?????????????????????????????? " " ?????????# | | ??????????????####?????????# #??????# " | | ?????????????? #?????????# #??????# " | | ?????????????? #?????????# #??????# " | | ?????????????? #???###########+#####??????# | | ??????????????######?# + #?????????# "" | | ?????????????? #?# # #?????????# | | ??????????????""" #?# @c # #?????????# | | ??????????????""" #?# """" + #?????????# | | ??????????????""" #?# """" # #???????### " | | ?????????????"""" ### """" # #????###"## "" | | ?????????????"""" ? # """" # ######" ### " | | ?????????????"""" ### # " | | ????????????? #?# # % + | | ?????????????#######?#########" % + | | ?????????????????####### ##?#" ###"""" "## | | ?????????????????# #?#T #?######### """ | | ?????????????????# ""#?### #?????????# "" | | ?????????????????# ""#???# #?????????# "" | | ?????????????????# ""#???# #?????????# | | ?????????????????# """" T#???# #?????????# | | ?????????????????# """" ""#???# #?????????# " | | ?????????????????# """" ""#???# #?????????# | | ?????????????????# """" ""##### #?????????# | | ?????????????##### ##""# #?????????# " | | ????????????? ###+#######T"# #?????????# "" | | ????????????? #?????????# " "" | | ????????????? " #?????????# " | | ????????????? #?????????# | | ????????????? ###+#########%####?????????# | | ????????????? ## #??# #????????????# | | ????????????? ## #??#%#????????????# | +----------------------------------------------------+ Best States ------------- Heat Dissipation 131 Coolant Potential 100 Energy Generation 89 Energy Capacity 1065 Matter Stores 300 Matter Capacity 300 Sight Range 16 Robot Scan Range 20 Terrain Scan Density 10 Jamming Range 16 Power Amplification 40 Additional Mass Support 12 Armor Coverage 1350 Resistance: KI 30 Resistance: TH 15 Resistance: EM 75 Power Shielding 66 Phase Shifting 20 Evasion (%) 73 Targeting Accuracy 12 Melee Accuracy 8 Target Analysis 12 Core Analysis 8 Armor Integrity Analysis 30 Recoil Reduction 6 Particle Charging 20 Offensive Hacking 40 Defensive Hacking 11 Item Schematics ----------------- Coolant Injector | -6/Factory | Scanalyzed Adv. Coolant Injector | -6/Extension | Hacked Cld. Cesium-ion Thruster | -5/Factory | Scanalyzed Centrium Medium Armor Plating | -5/Factory | Scanalyzed Adv. Weight Redist. System | -5/Factory | Scanalyzed Adv. KE Penetrator | -4/Factory | Scanalyzed Imp. Particle Charger | -4/Factory | Scanalyzed Adv. Variable Charge Gun | -4/Factory | Scanalyzed Adv. Heavy Siege Treads | -4/Factory | Hacked Cmb. Linear Gravjet | -4/Factory | Hacked Assault Drone Bay | -4/Zhirov | Free Exp. Heat Sink | -4/Zhirov | Free Exp. Optical Array | -4/Zhirov | Free Imp. Arc Thrower | -4/Zhirov | Free Imp. Thermal Defense Suite | -2/Testing | Archive Gravity Neutralizer | -2/Testing | Archive Exp. Energy Well | -2/Testing | Archive Exp. Biometal Medium Treads | -2/Testing | Archive Kinetic Spear | -2/Testing | Archive Robot Schematics ------------------ O-24 Administrator | -6/Extension | Hacked E-15 Imp | -2/Testing | Archive R-10 Processor | -2/Testing | Archive Fabricated ------------ Mic. Antimatter Reactor | x2 | -4/Factory | Preloaded Adv. Heavy Siege Treads | x1 | -4/Factory Adv. Heavy Siege Treads | x1 | -4/Factory | Preloaded Cld. Q-thruster | x1 | -2/Testing | Preloaded Repaired ---------- Exp. Sensor Array | 10% | -6/Extension Centrium Heavy Treads | 38% | -5/Factory Alien Tech Used ----------------- Integrated Dissipator Dimensional Node Initializer Transdimensional Reconstructor Core Cannon Terrabomb Subatomic Replicator Achievements -------------- None Challenges ------------ None Game ------ Seed NodeClaymoresScrapsphere Manual? 0 Play Time 06:02:19 Cumulative 286.9 hours Start 2025.05.19 @ 03:02:14 End 2025.05.20 @ 06:48:08 Sessions 11 Manual Loads 0 Difficulty Rogue Special Mode None Game No. 222 Rogue 213 Adventurer 9 Explorer 0 Win Type - Total 3 Types 2/0/0/1/0/0/0/0/0/0 Lore% 85 Gallery% 73 Achievement% 66 Wizard Run 0 Options --------- Layout 1 ASCII 0 Keyboard 0 Movement Numpad Keybinds 0 Fullscreen 1 Font 24/Smallcaps Map View 50x35 Zoom Use 0% Tactical HUD 1 Map Filters NONE Filters NONE Steam 1 RUN: 9e7dde11-fa2b-4762-9da2-5a57cb85cec4